Workbook

Sheet Margenkalk
B2: MARGENKALKULATOR
B3: für WSD-Leasing und Eigengeschäft
B4: Dient nur zum internen Gebrauch und darf keinesfalls an Kunden,
B5: Kooperationspartner oder sonstige Dritte weitergegeben werden
B7: =CONCATENATE("Li-Kosten lt.: ",'Interne Li-Kosten'!$A$1) -> Li-Kosten lt.: Liqui-Aufschläge 01/2025
B8: =CONCATENATE("Risiko- und Unterlegungskosten lt.: ",Precalculation!B5) -> Risiko- und Unterlegungskosten lt.: Precalculation_201401
B9: =IF(C10>Matrix!K19,"ACHTUNG KSV-Rating über 450 ist nicht akzeptabel!",IF(C16>120,"Laufzeit > 120 nicht möglich! Rücksprache mit Produktmanagement.",IF(Matrix!E19=0,"Bitte KSV-Rating, Bonitätseinschätzung oder Bonität erfassen!",IF(Matrix!E20="","Bitte Anschaffungswert erfassen!",IF(C16="","Bitte Laufzeit erfassen!",IF(Matrix!L4=1,"Bitte Objektsicherheit erfassen!",IF(C28="","Zur Ermittlung des Zinssatzes bitte Basiszinssatz erfassen!",""))))))) -> Bitte KSV-Rating, Bonitätseinschätzung oder Bonität erfassen!
B10: KSV-Rating
B11: Bonitätseinschätzung:
B12: Bonität:
B14: Produkt:
B15: Anschaffungswert exkl. USt.:
B16: Laufzeit in Monaten:
B17: =IF(Matrix!I22=3,"Erhöhung erste Rate:","Sonderentgeltvorauszahlung exkl. USt:") -> Sonderentgeltvorauszahlung exkl. USt:
B18: =IF(Matrix!I22=2,"Kaution feststehend:","") -> 
B19: Finanzierungsvolumen exkl. USt.: | C19: =IF(C15="","",C15-C17-C18) -> 
B20: =IF(Matrix!I22=3,"Erhöhung letzte Rate:",IF(Matrix!I22=1,IF(C33="","",CONCATENATE("Restwert exkl. USt.: ",ROUND(Matrix!H19,2))),"Restwert exkl. USt.:")) -> 
B21: Objektsicherheit in %:
B22: Bei Objekten mit unterschiedl. Besicherung bitte nach Volumen der Einzelobjekte gewichten und den nächstgelegenen Wert auswählen!
B24: interne Li-Kosten inkl. Verw.-A: | C24: =IF(B9="",ROUND(VLOOKUP(C16,'Interne Li-Kosten'!E5:G185,3,FALSE)/10000,5),"") -> 
B25: Risiko- und Unterlegungskosten: | C25: =IF(B9="",ROUND(VLOOKUP(Matrix!E22,Matrix!D31:Q222,Matrix!E4+4,FALSE)/100,5),"") -> 
B26: Gewinnbedarf lt. Geschäftsführung: | C26: =IF(B9="",ROUND(Matrix!E23/100,5),"") -> 
B27: Aufschlag: | C27: =IF(B9="",ROUND(C24+C25+C26,5),"") -> 
B28: Basiszinssatz:
B29: Zinssatz: | C29: =IF(B9="",IF(C28="","",C28+C27),"") -> 
B32: Ermittlung Konditionenpouvoir
B33: Zinssatz für Kundenoffert:
B34: =IF(C33="",IF(B9="",CONCATENATE("Für Pouvoirermittlung bitte ",B33," erfassen!"),""),CONCATENATE("Aufschlag für Kundenoffert: ",ROUND((C33-C28)*100,3),"%")) -> 
B36: =IF(C33="","",IF(Matrix!O25="VI",IF(C19>99999.99,"Pouvoir VI/ACM. Keine Freizeichnung notwendig.","Pouvoir VI. Keine Freizeichnung notwendig."),CONCATENATE("Freizeichnung ",Matrix!O25,":_____"))) -> 
B38: DB-Berechnung
B39: DB Bearbeitungsgebühr:
B40: DB Zinsmarge: | C40: =IF(CONCATENATE(B9,B42)="",(C19+IF(Matrix!I22=1,Matrix!H19,C20)-C18)/2*(C33-C28-C24)/12*C16,"") -> 
B41: DB Gesamt: | C41: =IF(C33="","",C39+C40) -> 
B42: =IF(B9="",IF(C33="","Für DB-Berechnung bitte Zinssatz für Kundenoffert erfassen!",""),"") -> 

Sheet Matrix (hidden)
D3: Laufzeit | G3: Bonität | I3: Bonitätseinschätzung | L3: Besicherung | O3: Gewinnbedarf
A4: Liquiditätsaufschlags-Matrix | D4: =ROUNDUP(Margenkalk!C16/12,0) -> 0 | E4: =VLOOKUP(D4,D5:F14,3,FALSE) ->  | G4: 1 | H4: =VLOOKUP(G4,G5:H17,2,FALSE) -> 0 | I4: 1 | J4: =VLOOKUP(I4,I5:K10,3,FALSE) -> 0 | L4: 1 | M4: =VLOOKUP(L4,L5:N9,3,FALSE) -> 0 | O4: 1 | P4: 0.7
D5: 1 | E5: 2 Jahre | F5: 2 | G5: 1 | I5: 1 | L5: 1 | O5: 2 | P5: 0.7
A6: Laufzeit | B6: Finanzierung tilgend/ | D6: 2 | E6: 2 Jahre | F6: 2 | G6: 2 | H6: 1 | I6: 2 | J6: kommunal (1-2) | K6: 2 | L6: 2 | M6: 0 | N6: 0 | O6: 3 | P6: 0.8
A7: in Jahren | B7: Pauschalrate | D7: 3 | E7: 3 Jahre | F7: 3 | G7: 3 | H7: 2 | I7: 3 | J7: gut (3-4b) | K7: 4b | L7: 3 | M7: 0.2 | N7: 20 | O7: 4a | P7: 0.8
A8: 1 | B8: 0 | D8: 4 | E8: 4 Jahre | F8: 4 | G8: 4 | H8: 3 | I8: 4 | J8: mittel (4c-5b) | K8: 5b | L8: 4 | M8: 0.5 | N8: 50 | O8: 4b | P8: 0.8
A9: 2 | B9: 0.02 | D9: 5 | E9: 5 Jahre | F9: 5 | G9: 5 | H9: 4a | I9: 5 | J9: noch akzeptabel (5c-6b) | K9: 6b | L9: 5 | M9: 0.7 | N9: 70 | O9: 4c | P9: 0.6
A10: 3 | B10: 0.04 | D10: 6 | E10: 6 Jahre | F10: 6 | G10: 6 | H10: 4b | O10: 5a | P10: 0.6
A11: 4 | B11: 0.05 | D11: 7 | E11: 7 Jahre | F11: 7 | G11: 7 | H11: 4c | I11: KSV-Rating | O11: 5b | P11: 0.6
A12: 5 | B12: 0.07 | D12: 8 | E12: 8 Jahre | F12: 8 | G12: 8 | H12: 5a | I12: Rating | J12: =Margenkalk!C10 -> 0 | K12: =IF(J12="",0,IF(J12=0,0,IF(J12<J15,"4b",IF(J12<J16,"4c",IF(J12<J17,"5a",IF(J12<J18,"5b",IF(J12<J19,"5c",IF(J12<(K19+1),"6b",0)))))))) -> 0 | O12: 5c | P12: 0.4
A13: 6 | B13: 0.09 | D13: 9 | E13: 9 Jahre | F13: 9 | G13: 9 | H13: 5b | I13: kommunal (1-2) | O13: 6a | P13: 0.4
A14: 7 | B14: 0.11 | D14: 10 | E14: 10 Jahre | F14: 10 | G14: 10 | H14: 5c | I14: gut (3-4b) | J14: 100 | K14: 200 | O14: 6b | P14: 0.4
A15: 8 | B15: 0.12 | G15: 11 | H15: 6a | I15: mittel 4c | J15: 201 | K15: 250 | O15: zusätzlich bis TEUR 25 | P15: 0.5
A16: 9 | B16: 0.14 | G16: 12 | H16: 6b | I16: mittel 5a | J16: 251 | K16: 300 | O16: zusätzlich TEUR 25 - 50 | P16: 0.25
A17: 10 | B17: 0.16 | I17: mittel 5b | J17: 301 | K17: 350
A18: 11 | B18: 0.18 | I18: noch akzeptabel 5c | J18: 351 | K18: 400
A19: 12 | B19: 0.19 | D19: Bonität | E19: =IF(H4=0,IF(J4=0,K12,J4),H4) -> 0 | G19: RWbeiFPO: | H19: =IF(Margenkalk!B9="",IF(Margenkalk!C33="","",PMT(Margenkalk!C33/12,Margenkalk!C16+1,-Margenkalk!C15+Margenkalk!C17,0,K22)),"") ->  | I19: noch akzeptabel 6a-6b | J19: 401 | K19: 450
A20: 13 | B20: 0.21 | D20: Volmen | E20: =IF(Margenkalk!C19="","",IF(Margenkalk!C19<30000.01,"k",IF(Margenkalk!C19>200000,"g","m"))) ->  | N20: Pouvoir | O20: Nachlass | P20: Gewinnbedarf
A21: 14 | B21: 0.23 | D21: Besicherung | E21: =M4 -> 0 | I21: Produkt | J21: VS/NS | N21: VI | O21: 0 | P21: =E23-(E23*O21) -> 
A22: 15 | B22: 0.25 | D22: Schlüssel | E22: =CONCATENATE(E19,E20,E21) -> 00 | I22: 1 | J22: 2 | K22: =IF(J22=1,1,0) -> 0 | N22: ACM | O22: 0.25 | P22: =IF(Margenkalk!C19<100000,E23-(Matrix!E23*Matrix!O22),Matrix!E23) -> 
A23: 16 | B23: 0.26 | D23: Gewinnbedarf | E23: =VLOOKUP(E19,O4:P14,2,FALSE)+IF(Margenkalk!C19<25000,P15,IF(Margenkalk!C19<50000,P16,0)) ->  | I23: Leasing - FPO | J23: 1 | K23: vorschüssig | N23: KACM/Leiter Vertrieb/Leiter VI | O23: 0.5 | P23: =E23-(E23*O23) -> 
A24: 17 | B24: 0.28 | D24: Unterschreitung | E24: =IF(Margenkalk!C28="",Margenkalk!C27-Margenkalk!C33,Margenkalk!C29-Margenkalk!C33)*100 ->  | I24: Leasing - RW | J24: 0 | K24: nachschüssig | N24: Geschäftsleitung
A25: 18 | B25: 0.3 | I25: Mietkauf | N25: Pouvoir | O25: =IF(E23-E24>=P21,"VI",IF(E23-E24>=P22,"ACM",IF(E23-E24>=P23,"KACM/Leiter Vertrieb/Leiter VI","Geschäftsleitung"))) -> 
A26: 19 | B26: 0.3
A27: 20 | B27: 0.3 | D27: Die Periodizität wurde bewusst nicht eingebaut, da sie für die DB-Berechnung in der EBV lt. Herrn Mischka nicht relevant ist!
D29: 1 | E29: 2 | F29: 3 | G29: 4 | H29: 5 | I29: 6 | J29: 7 | K29: 8 | L29: 9 | M29: 10 | N29: 11 | O29: 12 | P29: 13 | Q29: 14
A30: Bonität | B30: k<30t; m<200t; g 200t+ | C30: Besicherung in % | D30: Schlüssel | E30: Marge ohne Li | F30: Marge SPK | G30: Marge EBV | I30: 2 Jahre | J30: 3 Jahre | K30: 4 Jahre | L30: 5 Jahre | M30: 6 Jahre | N30: 7 Jahre | O30: 8 Jahre | P30: 9 Jahre | Q30: 10 Jahre
A31: 1 | B31: k | C31: 0 | D31: =CONCATENATE(A31,B31,C31) -> 1k0 | E31: 1 | F31: 0.3 | G31: =E31-F31 -> 0.7 | I31: =Precalculation!D61 -> 0.13 | J31: =Precalculation!D62 -> 0.145 | K31: =Precalculation!D63 -> 0.16 | L31: =Precalculation!D64 -> 0.175 | M31: =Precalculation!D65 -> 0.19 | N31: =Precalculation!D66 -> 0.205 | O31: =Precalculation!D67 -> 0.22 | P31: =Precalculation!D68 -> 0.235 | Q31: =Precalculation!D69 -> 0.25
A32: 2 | B32: k | C32: 0 | D32: =CONCATENATE(A32,B32,C32) -> 2k0 | E32: 1.03 | F32: 0.35 | G32: =E32-F32 -> 0.68 | I32: =Precalculation!E61 -> 0.25 | J32: =Precalculation!E62 -> 0.265 | K32: =Precalculation!E63 -> 0.28 | L32: =Precalculation!E64 -> 0.295 | M32: =Precalculation!E65 -> 0.31 | N32: =Precalculation!E66 -> 0.325 | O32: =Precalculation!E67 -> 0.34 | P32: =Precalculation!E68 -> 0.355 | Q32: =Precalculation!E69 -> 0.37
A33: 3 | B33: k | C33: 0 | D33: 3k0 | E33: 1.04 | F33: 0.4 | G33: 0.64 | I33: =Precalculation!F61 -> 0.4 | J33: =Precalculation!F62 -> 0.41875 | K33: =Precalculation!F63 -> 0.4375 | L33: =Precalculation!F64 -> 0.45625 | M33: =Precalculation!F65 -> 0.475 | N33: =Precalculation!F66 -> 0.49375 | O33: =Precalculation!F67 -> 0.5125 | P33: =Precalculation!F68 -> 0.53125 | Q33: =Precalculation!F69 -> 0.55
A34: 4a | B34: k | C34: 0 | D34: 4ak0 | E34: 1.65 | F34: 0.55 | G34: 1.1 | I34: =Precalculation!G61 -> 0.53 | J34: =Precalculation!G62 -> 0.5525 | K34: =Precalculation!G63 -> 0.575 | L34: =Precalculation!G64 -> 0.5975 | M34: =Precalculation!G65 -> 0.62 | N34: =Precalculation!G66 -> 0.6425 | O34: =Precalculation!G67 -> 0.665 | P34: =Precalculation!G68 -> 0.6875 | Q34: =Precalculation!G69 -> 0.71
A35: 4b | B35: k | C35: 0 | D35: 4bk0 | E35: 1.8 | F35: 0.7 | G35: 1.1 | I35: =Precalculation!H61 -> 0.68 | J35: =Precalculation!H62 -> 0.7025 | K35: =Precalculation!H63 -> 0.725 | L35: =Precalculation!H64 -> 0.7475 | M35: =Precalculation!H65 -> 0.77 | N35: =Precalculation!H66 -> 0.7925 | O35: =Precalculation!H67 -> 0.815 | P35: =Precalculation!H68 -> 0.8375 | Q35: =Precalculation!H69 -> 0.86
A36: 4c | B36: k | C36: 0 | D36: 4ck0 | E36: 2 | F36: 0.9 | G36: 1.1 | I36: =Precalculation!I61 -> 0.76 | J36: =Precalculation!I62 -> 0.78875 | K36: =Precalculation!I63 -> 0.8175 | L36: =Precalculation!I64 -> 0.84625 | M36: =Precalculation!I65 -> 0.875 | N36: =Precalculation!I66 -> 0.90375 | O36: =Precalculation!I67 -> 0.9325 | P36: =Precalculation!I68 -> 0.96125 | Q36: =Precalculation!I69 -> 0.99
A37: 5a | B37: k | C37: 0 | D37: 5ak0 | E37: 2.18 | F37: 1.05 | G37: 1.13 | I37: =Precalculation!J61 -> 1.08 | J37: =Precalculation!J62 -> 1.105 | K37: =Precalculation!J63 -> 1.13 | L37: =Precalculation!J64 -> 1.155 | M37: =Precalculation!J65 -> 1.18 | N37: =Precalculation!J66 -> 1.205 | O37: =Precalculation!J67 -> 1.23 | P37: =Precalculation!J68 -> 1.255 | Q37: =Precalculation!J69 -> 1.28
A38: 5b | B38: k | C38: 0 | D38: 5bk0 | E38: 2.33 | F38: 1.2 | G38: 1.13 | I38: =Precalculation!K61 -> 1.42 | J38: =Precalculation!K62 -> 1.44 | K38: =Precalculation!K63 -> 1.46 | L38: =Precalculation!K64 -> 1.48 | M38: =Precalculation!K65 -> 1.5 | N38: =Precalculation!K66 -> 1.52 | O38: =Precalculation!K67 -> 1.54 | P38: =Precalculation!K68 -> 1.56 | Q38: =Precalculation!K69 -> 1.58
A39: 5c | B39: k | C39: 0 | D39: 5ck0 | E39: 2.53 | F39: 1.4 | G39: 1.13 | I39: =Precalculation!L61 -> 1.92 | J39: =Precalculation!L62 -> 1.9275 | K39: =Precalculation!L63 -> 1.935 | L39: =Precalculation!L64 -> 1.9425 | M39: =Precalculation!L65 -> 1.95 | N39: =Precalculation!L66 -> 1.9575 | O39: =Precalculation!L67 -> 1.965 | P39: =Precalculation!L68 -> 1.9725 | Q39: =Precalculation!L69 -> 1.98
A40: 6a | B40: k | C40: 0 | D40: 6ak0 | E40: 3.03 | F40: 1.8 | G40: 1.23 | I40: =Precalculation!M61 -> 3.07 | J40: =Precalculation!M62 -> 3.03125 | K40: =Precalculation!M63 -> 2.9925 | L40: =Precalculation!M64 -> 2.95375 | M40: =Precalculation!M65 -> 2.915 | N40: =Precalculation!M66 -> 2.87625 | O40: =Precalculation!M67 -> 2.8375 | P40: =Precalculation!M68 -> 2.79875 | Q40: =Precalculation!M69 -> 2.76
A41: 6b | B41: k | C41: 0 | D41: 6bk0 | E41: 3.73 | F41: 2.5 | G41: 1.23 | I41: =Precalculation!N61 -> 3.82 | J41: =Precalculation!N62 -> 3.77125 | K41: =Precalculation!N63 -> 3.7225 | L41: =Precalculation!N64 -> 3.67375 | M41: =Precalculation!N65 -> 3.625 | N41: =Precalculation!N66 -> 3.57625 | O41: =Precalculation!N67 -> 3.5275 | P41: =Precalculation!N68 -> 3.47875 | Q41: =Precalculation!N69 -> 3.43
A42: 7 | B42: k | C42: 0 | D42: 7k0 | E42: 5.02 | F42: 3.8 | G42: 1.22 | I42: =Precalculation!O61 -> 7.56 | J42: =Precalculation!O62 -> 7.33125 | K42: =Precalculation!O63 -> 7.1025 | L42: =Precalculation!O64 -> 6.87375 | M42: =Precalculation!O65 -> 6.645 | N42: =Precalculation!O66 -> 6.41625 | O42: =Precalculation!O67 -> 6.1875 | P42: =Precalculation!O68 -> 5.95875 | Q42: =Precalculation!O69 -> 5.73
A43: 8 | B43: k | C43: 0 | D43: 8k0 | E43: 5.5 | F43: 3.8 | G43: 1.7 | I43: =Precalculation!P61 -> 16.54 | J43: =Precalculation!P62 -> 15.92 | K43: =Precalculation!P63 -> 15.3 | L43: =Precalculation!P64 -> 14.68 | M43: =Precalculation!P65 -> 14.06 | N43: =Precalculation!P66 -> 13.44 | O43: =Precalculation!P67 -> 12.82 | P43: =Precalculation!P68 -> 12.2 | Q43: =Precalculation!P69 -> 11.58
A44: A | B44: k | C44: 0 | D44: Ak0 | E44: 1.7 | F44: 0.6 | G44: 1.1
A45: B | B45: k | C45: 0 | D45: Bk0 | E45: 2.45 | F45: 1.32 | G45: 1.13
A46: C | B46: k | C46: 0 | D46: Ck0 | E46: 4.52 | F46: 3.3 | G46: 1.22
A47: 1 | B47: m | C47: 0 | D47: 1m0 | E47: 0.85 | F47: 0.3 | G47: 0.55 | I47: =I31 -> 0.13 | J47: 0.145 | K47: 0.16 | L47: 0.175 | M47: 0.19 | N47: 0.205 | O47: 0.22 | P47: 0.235 | Q47: 0.25
A48: 2 | B48: m | C48: 0 | D48: 2m0 | E48: 0.88 | F48: 0.35 | G48: 0.53 | I48: =I32 -> 0.25 | J48: 0.265 | K48: 0.28 | L48: 0.295 | M48: 0.31 | N48: 0.325 | O48: 0.34 | P48: 0.355 | Q48: 0.37
A49: 3 | B49: m | C49: 0 | D49: 3m0 | E49: 0.89 | F49: 0.4 | G49: 0.49 | I49: =I33 -> 0.4 | J49: 0.41875 | K49: 0.4375 | L49: 0.45625 | M49: 0.475 | N49: 0.49375 | O49: 0.5125 | P49: 0.53125 | Q49: 0.55
A50: 4a | B50: m | C50: 0 | D50: 4am0 | E50: 1.45 | F50: 0.55 | G50: 0.9 | I50: =I34 -> 0.53 | J50: 0.5525 | K50: 0.575 | L50: 0.5975 | M50: 0.62 | N50: 0.6425 | O50: 0.665 | P50: 0.6875 | Q50: 0.71
A51: 4b | B51: m | C51: 0 | D51: 4bm0 | E51: 1.6 | F51: 0.7 | G51: 0.9 | I51: =I35 -> 0.68 | J51: 0.7025 | K51: 0.725 | L51: 0.7475 | M51: 0.77 | N51: 0.7925 | O51: 0.815 | P51: 0.8375 | Q51: 0.86
A52: 4c | B52: m | C52: 0 | D52: 4cm0 | E52: 1.8 | F52: 0.9 | G52: 0.9 | I52: =I36 -> 0.76 | J52: 0.78875 | K52: 0.8175 | L52: 0.84625 | M52: 0.875 | N52: 0.90375 | O52: 0.9325 | P52: 0.96125 | Q52: 0.99
A53: 5a | B53: m | C53: 0 | D53: 5am0 | E53: 1.98 | F53: 1.05 | G53: 0.93 | I53: =I37 -> 1.08 | J53: 1.105 | K53: 1.13 | L53: 1.155 | M53: 1.18 | N53: 1.205 | O53: 1.23 | P53: 1.255 | Q53: 1.28
A54: 5b | B54: m | C54: 0 | D54: 5bm0 | E54: 2.13 | F54: 1.2 | G54: 0.93 | I54: =I38 -> 1.42 | J54: 1.44 | K54: 1.46 | L54: 1.48 | M54: 1.5 | N54: 1.52 | O54: 1.54 | P54: 1.56 | Q54: 1.58
A55: 5c | B55: m | C55: 0 | D55: 5cm0 | E55: 2.33 | F55: 1.4 | G55: 0.93 | I55: =I39 -> 1.92 | J55: 1.9275 | K55: 1.935 | L55: 1.9425 | M55: 1.95 | N55: 1.9575 | O55: 1.965 | P55: 1.9725 | Q55: 1.98
A56: 6a | B56: m | C56: 0 | D56: 6am0 | E56: 2.83 | F56: 1.8 | G56: 1.03 | I56: =I40 -> 3.07 | J56: 3.03125 | K56: 2.9925 | L56: 2.95375 | M56: 2.915 | N56: 2.87625 | O56: 2.8375 | P56: 2.79875 | Q56: 2.76
A57: 6b | B57: m | C57: 0 | D57: 6bm0 | E57: 3.53 | F57: 2.5 | G57: 1.03 | I57: =I41 -> 3.82 | J57: 3.77125 | K57: 3.7225 | L57: 3.67375 | M57: 3.625 | N57: 3.57625 | O57: 3.5275 | P57: 3.47875 | Q57: 3.43
A58: 7 | B58: m | C58: 0 | D58: 7m0 | E58: 4.82 | F58: 3.8 | G58: 1.02 | I58: =I42 -> 7.56 | J58: 7.33125 | K58: 7.1025 | L58: 6.87375 | M58: 6.645 | N58: 6.41625 | O58: 6.1875 | P58: 5.95875 | Q58: 5.73
A59: 8 | B59: m | C59: 0 | D59: 8m0 | E59: 5.3 | F59: 3.8 | G59: 1.5 | I59: =I43 -> 16.54 | J59: 15.92 | K59: 15.3 | L59: 14.68 | M59: 14.06 | N59: 13.44 | O59: 12.82 | P59: 12.2 | Q59: 11.58
A60: A | B60: m | C60: 0 | D60: Am0 | E60: 1.5 | F60: 0.6 | G60: 0.9
A61: B | B61: m | C61: 0 | D61: Bm0 | E61: 2.25 | F61: 1.32 | G61: 0.93
A62: C | B62: m | C62: 0 | D62: Cm0 | E62: 4.32 | F62: 3.3 | G62: 1.02
A63: 1 | B63: g | C63: 0 | D63: 1g0 | E63: 0.7 | F63: 0.3 | G63: 0.4 | I63: =I47 -> 0.13 | J63: 0.145 | K63: 0.16 | L63: 0.175 | M63: 0.19 | N63: 0.205 | O63: 0.22 | P63: 0.235 | Q63: 0.25
A64: 2 | B64: g | C64: 0 | D64: 2g0 | E64: 0.73 | F64: 0.35 | G64: 0.38 | I64: =I48 -> 0.25 | J64: 0.265 | K64: 0.28 | L64: 0.295 | M64: 0.31 | N64: 0.325 | O64: 0.34 | P64: 0.355 | Q64: 0.37
A65: 3 | B65: g | C65: 0 | D65: 3g0 | E65: 0.74 | F65: 0.4 | G65: 0.34 | I65: =I49 -> 0.4 | J65: 0.41875 | K65: 0.4375 | L65: 0.45625 | M65: 0.475 | N65: 0.49375 | O65: 0.5125 | P65: 0.53125 | Q65: 0.55
A66: 4a | B66: g | C66: 0 | D66: 4ag0 | E66: 1.1 | F66: 0.55 | G66: 0.55 | I66: =I50 -> 0.53 | J66: 0.5525 | K66: 0.575 | L66: 0.5975 | M66: 0.62 | N66: 0.6425 | O66: 0.665 | P66: 0.6875 | Q66: 0.71
A67: 4b | B67: g | C67: 0 | D67: 4bg0 | E67: 1.25 | F67: 0.7 | G67: 0.55 | I67: =I51 -> 0.68 | J67: 0.7025 | K67: 0.725 | L67: 0.7475 | M67: 0.77 | N67: 0.7925 | O67: 0.815 | P67: 0.8375 | Q67: 0.86
A68: 4c | B68: g | C68: 0 | D68: 4cg0 | E68: 1.45 | F68: 0.9 | G68: 0.55 | I68: =I52 -> 0.76 | J68: 0.78875 | K68: 0.8175 | L68: 0.84625 | M68: 0.875 | N68: 0.90375 | O68: 0.9325 | P68: 0.96125 | Q68: 0.99
A69: 5a | B69: g | C69: 0 | D69: 5ag0 | E69: 1.63 | F69: 1.05 | G69: 0.58 | I69: =I53 -> 1.08 | J69: 1.105 | K69: 1.13 | L69: 1.155 | M69: 1.18 | N69: 1.205 | O69: 1.23 | P69: 1.255 | Q69: 1.28
A70: 5b | B70: g | C70: 0 | D70: 5bg0 | E70: 1.78 | F70: 1.2 | G70: 0.58 | I70: =I54 -> 1.42 | J70: 1.44 | K70: 1.46 | L70: 1.48 | M70: 1.5 | N70: 1.52 | O70: 1.54 | P70: 1.56 | Q70: 1.58
A71: 5c | B71: g | C71: 0 | D71: 5cg0 | E71: 1.98 | F71: 1.4 | G71: 0.58 | I71: =I55 -> 1.92 | J71: 1.9275 | K71: 1.935 | L71: 1.9425 | M71: 1.95 | N71: 1.9575 | O71: 1.965 | P71: 1.9725 | Q71: 1.98
A72: 6a | B72: g | C72: 0 | D72: 6ag0 | E72: 2.53 | F72: 1.8 | G72: 0.73 | I72: =I56 -> 3.07 | J72: 3.03125 | K72: 2.9925 | L72: 2.95375 | M72: 2.915 | N72: 2.87625 | O72: 2.8375 | P72: 2.79875 | Q72: 2.76
A73: 6b | B73: g | C73: 0 | D73: 6bg0 | E73: 3.23 | F73: 2.5 | G73: 0.73 | I73: =I57 -> 3.82 | J73: 3.77125 | K73: 3.7225 | L73: 3.67375 | M73: 3.625 | N73: 3.57625 | O73: 3.5275 | P73: 3.47875 | Q73: 3.43
A74: 7 | B74: g | C74: 0 | D74: 7g0 | E74: 4.52 | F74: 3.8 | G74: 0.72 | I74: =I58 -> 7.56 | J74: 7.33125 | K74: 7.1025 | L74: 6.87375 | M74: 6.645 | N74: 6.41625 | O74: 6.1875 | P74: 5.95875 | Q74: 5.73
A75: 8 | B75: g | C75: 0 | D75: 8g0 | E75: 4.85 | F75: 3.8 | G75: 1.05 | I75: =I59 -> 16.54 | J75: 15.92 | K75: 15.3 | L75: 14.68 | M75: 14.06 | N75: 13.44 | O75: 12.82 | P75: 12.2 | Q75: 11.58
A76: A | B76: g | C76: 0 | D76: Ag0 | E76: 1.15 | F76: 0.6 | G76: 0.55
A77: B | B77: g | C77: 0 | D77: Bg0 | E77: 1.9 | F77: 1.32 | G77: 0.58
A78: C | B78: g | C78: 0 | D78: Cg0 | E78: 4.02 | F78: 3.3 | G78: 0.72
A79: 1 | B79: k | C79: 20 | D79: 1k20 | E79: 1 | F79: 0.3 | G79: =E79-F79 -> 0.7 | I79: =Precalculation!D45 -> 0.13 | J79: =Precalculation!D46 -> 0.14125 | K79: =Precalculation!D47 -> 0.1525 | L79: =Precalculation!D48 -> 0.16375 | M79: =Precalculation!D49 -> 0.175 | N79: =Precalculation!D50 -> 0.18625 | O79: =Precalculation!D51 -> 0.1975 | P79: =Precalculation!D52 -> 0.20875 | Q79: =Precalculation!D53 -> 0.22
A80: 2 | B80: k | C80: 20 | D80: 2k20 | E80: 1.02 | F80: 0.34 | G80: =E80-F80 -> 0.68 | I80: =Precalculation!E45 -> 0.25 | J80: =Precalculation!E46 -> 0.2625 | K80: =Precalculation!E47 -> 0.275 | L80: =Precalculation!E48 -> 0.2875 | M80: =Precalculation!E49 -> 0.3 | N80: =Precalculation!E50 -> 0.3125 | O80: =Precalculation!E51 -> 0.325 | P80: =Precalculation!E52 -> 0.3375 | Q80: =Precalculation!E53 -> 0.35
A81: 3 | B81: k | C81: 20 | D81: 3k20 | E81: 1.02 | F81: 0.38 | G81: 0.64 | I81: =Precalculation!F45 -> 0.39 | J81: =Precalculation!F46 -> 0.405 | K81: =Precalculation!F47 -> 0.42 | L81: =Precalculation!F48 -> 0.435 | M81: =Precalculation!F49 -> 0.45 | N81: =Precalculation!F50 -> 0.465 | O81: =Precalculation!F51 -> 0.48 | P81: =Precalculation!F52 -> 0.495 | Q81: =Precalculation!F53 -> 0.51
A82: 4a | B82: k | C82: 20 | D82: 4ak20 | E82: 1.6 | F82: 0.5 | G82: 1.1 | I82: =Precalculation!G45 -> 0.51 | J82: =Precalculation!G46 -> 0.52875 | K82: =Precalculation!G47 -> 0.5475 | L82: =Precalculation!G48 -> 0.56625 | M82: =Precalculation!G49 -> 0.585 | N82: =Precalculation!G50 -> 0.60375 | O82: =Precalculation!G51 -> 0.6225 | P82: =Precalculation!G52 -> 0.64125 | Q82: =Precalculation!G53 -> 0.66
A83: 4b | B83: k | C83: 20 | D83: 4bk20 | E83: 1.72 | F83: 0.62 | G83: 1.1 | I83: =Precalculation!H45 -> 0.65 | J83: =Precalculation!H46 -> 0.66875 | K83: =Precalculation!H47 -> 0.6875 | L83: =Precalculation!H48 -> 0.70625 | M83: =Precalculation!H49 -> 0.725 | N83: =Precalculation!H50 -> 0.74375 | O83: =Precalculation!H51 -> 0.7625 | P83: =Precalculation!H52 -> 0.78125 | Q83: =Precalculation!H53 -> 0.8
A84: 4c | B84: k | C84: 20 | D84: 4ck20 | E84: 1.88 | F84: 0.78 | G84: 1.1 | I84: =Precalculation!I45 -> 0.73 | J84: =Precalculation!I46 -> 0.7525 | K84: =Precalculation!I47 -> 0.775 | L84: =Precalculation!I48 -> 0.7975 | M84: =Precalculation!I49 -> 0.82 | N84: =Precalculation!I50 -> 0.8425 | O84: =Precalculation!I51 -> 0.865 | P84: =Precalculation!I52 -> 0.8875 | Q84: =Precalculation!I53 -> 0.91
A85: 5a | B85: k | C85: 20 | D85: 5ak20 | E85: 2.03 | F85: 0.9 | G85: 1.13 | I85: =Precalculation!J45 -> 1.01 | J85: =Precalculation!J46 -> 1.03 | K85: =Precalculation!J47 -> 1.05 | L85: =Precalculation!J48 -> 1.07 | M85: =Precalculation!J49 -> 1.09 | N85: =Precalculation!J50 -> 1.11 | O85: =Precalculation!J51 -> 1.13 | P85: =Precalculation!J52 -> 1.15 | Q85: =Precalculation!J53 -> 1.17
A86: 5b | B86: k | C86: 20 | D86: 5bk20 | E86: 2.15 | F86: 1.02 | G86: 1.13 | I86: =Precalculation!K45 -> 1.3 | J86: =Precalculation!K46 -> 1.3175 | K86: =Precalculation!K47 -> 1.335 | L86: =Precalculation!K48 -> 1.3525 | M86: =Precalculation!K49 -> 1.37 | N86: =Precalculation!K50 -> 1.3875 | O86: =Precalculation!K51 -> 1.405 | P86: =Precalculation!K52 -> 1.4225 | Q86: =Precalculation!K53 -> 1.44
A87: 5c | B87: k | C87: 20 | D87: 5ck20 | E87: 2.31 | F87: 1.18 | G87: 1.13 | I87: =Precalculation!L45 -> 1.73 | J87: =Precalculation!L46 -> 1.7375 | K87: =Precalculation!L47 -> 1.745 | L87: =Precalculation!L48 -> 1.7525 | M87: =Precalculation!L49 -> 1.76 | N87: =Precalculation!L50 -> 1.7675 | O87: =Precalculation!L51 -> 1.775 | P87: =Precalculation!L52 -> 1.7825 | Q87: =Precalculation!L53 -> 1.79
A88: 6a | B88: k | C88: 20 | D88: 6ak20 | E88: 2.73 | F88: 1.5 | G88: 1.23 | I88: =Precalculation!M45 -> 2.71 | J88: =Precalculation!M46 -> 2.6775 | K88: =Precalculation!M47 -> 2.645 | L88: =Precalculation!M48 -> 2.6125 | M88: =Precalculation!M49 -> 2.58 | N88: =Precalculation!M50 -> 2.5475 | O88: =Precalculation!M51 -> 2.515 | P88: =Precalculation!M52 -> 2.4825 | Q88: =Precalculation!M53 -> 2.45
A89: 6b | B89: k | C89: 20 | D89: 6bk20 | E89: 3.29 | F89: 2.06 | G89: 1.23 | I89: =Precalculation!N45 -> 3.36 | J89: =Precalculation!N46 -> 3.32125 | K89: =Precalculation!N47 -> 3.2825 | L89: =Precalculation!N48 -> 3.24375 | M89: =Precalculation!N49 -> 3.205 | N89: =Precalculation!N50 -> 3.16625 | O89: =Precalculation!N51 -> 3.1275 | P89: =Precalculation!N52 -> 3.08875 | Q89: =Precalculation!N53 -> 3.05
A90: 7 | B90: k | C90: 20 | D90: 7k20 | E90: 4.32 | F90: 3.1 | G90: 1.22 | I90: =Precalculation!O45 -> 6.47 | J90: =Precalculation!O46 -> 6.28375 | K90: =Precalculation!O47 -> 6.0975 | L90: =Precalculation!O48 -> 5.91125 | M90: =Precalculation!O49 -> 5.725 | N90: =Precalculation!O50 -> 5.53875 | O90: =Precalculation!O51 -> 5.3525 | P90: =Precalculation!O52 -> 5.16625 | Q90: =Precalculation!O53 -> 4.98
A91: 8 | B91: k | C91: 20 | D91: 8k20 | E91: 4.8 | F91: 3.1 | G91: 1.7 | I91: =Precalculation!P45 -> 13.85 | J91: =Precalculation!P46 -> 13.345 | K91: =Precalculation!P47 -> 12.84 | L91: =Precalculation!P48 -> 12.335 | M91: =Precalculation!P49 -> 11.83 | N91: =Precalculation!P50 -> 11.325 | O91: =Precalculation!P51 -> 10.82 | P91: =Precalculation!P52 -> 10.315 | Q91: =Precalculation!P53 -> 9.81
A92: A | B92: k | C92: 20 | D92: Ak20 | E92: 1.64 | F92: 0.54 | G92: 1.1
A93: B | B93: k | C93: 20 | D93: Bk20 | E93: 2.246 | F93: 1.116 | G93: 1.13
A94: C | B94: k | C94: 20 | D94: Ck20 | E94: 3.92 | F94: 2.7 | G94: 1.22
A95: 1 | B95: m | C95: 20 | D95: 1m20 | E95: 0.85 | F95: 0.3 | G95: 0.55 | I95: =I79 -> 0.13 | J95: 0.14125 | K95: 0.1525 | L95: 0.16375 | M95: 0.175 | N95: 0.18625 | O95: 0.1975 | P95: 0.20875 | Q95: 0.22
A96: 2 | B96: m | C96: 20 | D96: =CONCATENATE(A96,B96,C96) -> 2m20 | E96: 0.87 | F96: 0.34 | G96: 0.53 | I96: =I80 -> 0.25 | J96: 0.2625 | K96: 0.275 | L96: 0.2875 | M96: 0.3 | N96: 0.3125 | O96: 0.325 | P96: 0.3375 | Q96: 0.35
A97: 3 | B97: m | C97: 20 | D97: 3m20 | E97: 0.87 | F97: 0.38 | G97: 0.49 | I97: =I81 -> 0.39 | J97: 0.405 | K97: 0.42 | L97: 0.435 | M97: 0.45 | N97: 0.465 | O97: 0.48 | P97: 0.495 | Q97: 0.51
A98: 4a | B98: m | C98: 20 | D98: 4am20 | E98: 1.4 | F98: 0.5 | G98: 0.9 | I98: =I82 -> 0.51 | J98: 0.52875 | K98: 0.5475 | L98: 0.56625 | M98: 0.585 | N98: 0.60375 | O98: 0.6225 | P98: 0.64125 | Q98: 0.66
A99: 4b | B99: m | C99: 20 | D99: 4bm20 | E99: 1.52 | F99: 0.62 | G99: 0.9 | I99: =I83 -> 0.65 | J99: 0.66875 | K99: 0.6875 | L99: 0.70625 | M99: 0.725 | N99: 0.74375 | O99: 0.7625 | P99: 0.78125 | Q99: 0.8
A100: 4c | B100: m | C100: 20 | D100: 4cm20 | E100: 1.68 | F100: 0.78 | G100: 0.9 | I100: =I84 -> 0.73 | J100: 0.7525 | K100: 0.775 | L100: 0.7975 | M100: 0.82 | N100: 0.8425 | O100: 0.865 | P100: 0.8875 | Q100: 0.91
A101: 5a | B101: m | C101: 20 | D101: 5am20 | E101: 1.83 | F101: 0.9 | G101: 0.93 | I101: =I85 -> 1.01 | J101: 1.03 | K101: 1.05 | L101: 1.07 | M101: 1.09 | N101: 1.11 | O101: 1.13 | P101: 1.15 | Q101: 1.17
A102: 5b | B102: m | C102: 20 | D102: 5bm20 | E102: 1.95 | F102: 1.02 | G102: 0.93 | I102: =I86 -> 1.3 | J102: 1.3175 | K102: 1.335 | L102: 1.3525 | M102: 1.37 | N102: 1.3875 | O102: 1.405 | P102: 1.4225 | Q102: 1.44
A103: 5c | B103: m | C103: 20 | D103: 5cm20 | E103: 2.11 | F103: 1.18 | G103: 0.93 | I103: =I87 -> 1.73 | J103: 1.7375 | K103: 1.745 | L103: 1.7525 | M103: 1.76 | N103: 1.7675 | O103: 1.775 | P103: 1.7825 | Q103: 1.79
A104: 6a | B104: m | C104: 20 | D104: 6am20 | E104: 2.53 | F104: 1.5 | G104: 1.03 | I104: =I88 -> 2.71 | J104: 2.6775 | K104: 2.645 | L104: 2.6125 | M104: 2.58 | N104: 2.5475 | O104: 2.515 | P104: 2.4825 | Q104: 2.45
A105: 6b | B105: m | C105: 20 | D105: 6bm20 | E105: 3.09 | F105: 2.06 | G105: 1.03 | I105: =I89 -> 3.36 | J105: 3.32125 | K105: 3.2825 | L105: 3.24375 | M105: 3.205 | N105: 3.16625 | O105: 3.1275 | P105: 3.08875 | Q105: 3.05
A106: 7 | B106: m | C106: 20 | D106: 7m20 | E106: 4.12 | F106: 3.1 | G106: 1.02 | I106: =I90 -> 6.47 | J106: 6.28375 | K106: 6.0975 | L106: 5.91125 | M106: 5.725 | N106: 5.53875 | O106: 5.3525 | P106: 5.16625 | Q106: 4.98
A107: 8 | B107: m | C107: 20 | D107: 8m20 | E107: 4.6 | F107: 3.1 | G107: 1.5 | I107: =I91 -> 13.85 | J107: 13.345 | K107: 12.84 | L107: 12.335 | M107: 11.83 | N107: 11.325 | O107: 10.82 | P107: 10.315 | Q107: 9.81
A108: A | B108: m | C108: 20 | D108: Am20 | E108: 1.44 | F108: 0.54 | G108: 0.9
A109: B | B109: m | C109: 20 | D109: Bm20 | E109: 2.046 | F109: 1.116 | G109: 0.93
A110: C | B110: m | C110: 20 | D110: Cm20 | E110: 3.72 | F110: 2.7 | G110: 1.02
A111: 1 | B111: g | C111: 20 | D111: 1g20 | E111: 0.7 | F111: 0.3 | G111: 0.4 | I111: =I79 -> 0.13 | J111: 0.14125 | K111: 0.1525 | L111: 0.16375 | M111: 0.175 | N111: 0.18625 | O111: 0.1975 | P111: 0.20875 | Q111: 0.22
A112: 2 | B112: g | C112: 20 | D112: 2g20 | E112: 0.72 | F112: 0.34 | G112: 0.38 | I112: =I80 -> 0.25 | J112: 0.2625 | K112: 0.275 | L112: 0.2875 | M112: 0.3 | N112: 0.3125 | O112: 0.325 | P112: 0.3375 | Q112: 0.35
A113: 3 | B113: g | C113: 20 | D113: 3g20 | E113: 0.72 | F113: 0.38 | G113: 0.34 | I113: =I81 -> 0.39 | J113: 0.405 | K113: 0.42 | L113: 0.435 | M113: 0.45 | N113: 0.465 | O113: 0.48 | P113: 0.495 | Q113: 0.51
A114: 4a | B114: g | C114: 20 | D114: 4ag20 | E114: 1.05 | F114: 0.5 | G114: 0.55 | I114: =I82 -> 0.51 | J114: 0.52875 | K114: 0.5475 | L114: 0.56625 | M114: 0.585 | N114: 0.60375 | O114: 0.6225 | P114: 0.64125 | Q114: 0.66
A115: 4b | B115: g | C115: 20 | D115: 4bg20 | E115: 1.17 | F115: 0.62 | G115: 0.55 | I115: =I83 -> 0.65 | J115: =J83 -> 0.66875 | K115: 0.6875 | L115: 0.70625 | M115: 0.725 | N115: 0.74375 | O115: 0.7625 | P115: 0.78125 | Q115: 0.8
A116: 4c | B116: g | C116: 20 | D116: 4cg20 | E116: 1.33 | F116: 0.78 | G116: 0.55 | I116: =I84 -> 0.73 | J116: 0.7525 | K116: 0.775 | L116: 0.7975 | M116: 0.82 | N116: 0.8425 | O116: 0.865 | P116: 0.8875 | Q116: 0.91
A117: 5a | B117: g | C117: 20 | D117: 5ag20 | E117: 1.48 | F117: 0.9 | G117: 0.58 | I117: =I85 -> 1.01 | J117: 1.03 | K117: 1.05 | L117: 1.07 | M117: 1.09 | N117: 1.11 | O117: 1.13 | P117: 1.15 | Q117: 1.17
A118: 5b | B118: g | C118: 20 | D118: 5bg20 | E118: 1.6 | F118: 1.02 | G118: 0.58 | I118: =I86 -> 1.3 | J118: 1.3175 | K118: 1.335 | L118: 1.3525 | M118: 1.37 | N118: 1.3875 | O118: 1.405 | P118: 1.4225 | Q118: 1.44
A119: 5c | B119: g | C119: 20 | D119: 5cg20 | E119: 1.76 | F119: 1.18 | G119: 0.58 | I119: =I87 -> 1.73 | J119: 1.7375 | K119: 1.745 | L119: 1.7525 | M119: 1.76 | N119: 1.7675 | O119: 1.775 | P119: 1.7825 | Q119: 1.79
A120: 6a | B120: g | C120: 20 | D120: 6ag20 | E120: 2.23 | F120: 1.5 | G120: 0.73 | I120: =I88 -> 2.71 | J120: 2.6775 | K120: 2.645 | L120: 2.6125 | M120: 2.58 | N120: 2.5475 | O120: 2.515 | P120: 2.4825 | Q120: 2.45
A121: 6b | B121: g | C121: 20 | D121: 6bg20 | E121: 2.79 | F121: 2.06 | G121: 0.73 | I121: =I89 -> 3.36 | J121: 3.32125 | K121: 3.2825 | L121: 3.24375 | M121: 3.205 | N121: 3.16625 | O121: 3.1275 | P121: 3.08875 | Q121: 3.05
A122: 7 | B122: g | C122: 20 | D122: 7g20 | E122: 3.82 | F122: 3.1 | G122: 0.72 | I122: =I90 -> 6.47 | J122: 6.28375 | K122: 6.0975 | L122: 5.91125 | M122: 5.725 | N122: 5.53875 | O122: 5.3525 | P122: 5.16625 | Q122: 4.98
A123: 8 | B123: g | C123: 20 | D123: 8g20 | E123: 4.15 | F123: 3.1 | G123: 1.05 | I123: =I91 -> 13.85 | J123: 13.345 | K123: 12.84 | L123: 12.335 | M123: 11.83 | N123: 11.325 | O123: 10.82 | P123: 10.315 | Q123: 9.81
A124: A | B124: g | C124: 20 | D124: Ag20 | E124: 1.09 | F124: 0.54 | G124: 0.55
A125: B | B125: g | C125: 20 | D125: Bg20 | E125: 1.696 | F125: 1.116 | G125: 0.58
A126: C | B126: g | C126: 20 | D126: Cg20 | E126: 3.42 | F126: 2.7 | G126: 0.72
A127: 1 | B127: k | C127: 50 | D127: 1k50 | E127: 1 | F127: 0.3 | G127: =E127-F127 -> 0.7 | I127: =Precalculation!D29 -> 0.12 | J127: =Precalculation!D30 -> 0.12875 | K127: =Precalculation!D31 -> 0.1375 | L127: =Precalculation!D32 -> 0.14625 | M127: =Precalculation!D33 -> 0.155 | N127: =Precalculation!D34 -> 0.16375 | O127: =Precalculation!D35 -> 0.1725 | P127: =Precalculation!D36 -> 0.18125 | Q127: =Precalculation!D37 -> 0.19
A128: 2 | B128: k | C128: 50 | D128: 2k50 | E128: 1.005 | F128: 0.325 | G128: =E128-F128 -> 0.68 | I128: =Precalculation!E29 -> 0.24 | J128: =Precalculation!E30 -> 0.24875 | K128: =Precalculation!E31 -> 0.2575 | L128: =Precalculation!E32 -> 0.26625 | M128: =Precalculation!E33 -> 0.275 | N128: =Precalculation!E34 -> 0.28375 | O128: =Precalculation!E35 -> 0.2925 | P128: =Precalculation!E36 -> 0.30125 | Q128: =Precalculation!E37 -> 0.31
A129: 3 | B129: k | C129: 50 | D129: 3k50 | E129: 0.99 | F129: 0.35 | G129: 0.64 | I129: =Precalculation!F29 -> 0.36 | J129: =Precalculation!F30 -> 0.37125 | K129: =Precalculation!F31 -> 0.3825 | L129: =Precalculation!F32 -> 0.39375 | M129: =Precalculation!F33 -> 0.405 | N129: =Precalculation!F34 -> 0.41625 | O129: =Precalculation!F35 -> 0.4275 | P129: =Precalculation!F36 -> 0.43875 | Q129: =Precalculation!F37 -> 0.45
A130: 4a | B130: k | C130: 50 | D130: 4ak50 | E130: 1.525 | F130: 0.425 | G130: 1.1 | I130: =Precalculation!G29 -> 0.47 | J130: =Precalculation!G30 -> 0.48375 | K130: =Precalculation!G31 -> 0.4975 | L130: =Precalculation!G32 -> 0.51125 | M130: =Precalculation!G33 -> 0.525 | N130: =Precalculation!G34 -> 0.53875 | O130: =Precalculation!G35 -> 0.5525 | P130: =Precalculation!G36 -> 0.56625 | Q130: =Precalculation!G37 -> 0.58
A131: 4b | B131: k | C131: 50 | D131: 4bk50 | E131: 1.6 | F131: 0.5 | G131: 1.1 | I131: =Precalculation!H29 -> 0.6 | J131: =Precalculation!H30 -> 0.61375 | K131: =Precalculation!H31 -> 0.6275 | L131: =Precalculation!H32 -> 0.64125 | M131: =Precalculation!H33 -> 0.655 | N131: =Precalculation!H34 -> 0.66875 | O131: =Precalculation!H35 -> 0.6825 | P131: =Precalculation!H36 -> 0.69625 | Q131: =Precalculation!H37 -> 0.71
A132: 4c | B132: k | C132: 50 | D132: 4ck50 | E132: 1.7 | F132: 0.6 | G132: 1.1 | I132: =Precalculation!I29 -> 0.67 | J132: =Precalculation!I30 -> 0.68625 | K132: =Precalculation!I31 -> 0.7025 | L132: =Precalculation!I32 -> 0.71875 | M132: =Precalculation!I33 -> 0.735 | N132: =Precalculation!I34 -> 0.75125 | O132: =Precalculation!I35 -> 0.7675 | P132: =Precalculation!I36 -> 0.78375 | Q132: =Precalculation!I37 -> 0.8
A133: 5a | B133: k | C133: 50 | D133: 5ak50 | E133: 1.805 | F133: 0.675 | G133: 1.13 | I133: =Precalculation!J29 -> 0.9 | J133: =Precalculation!J30 -> 0.91375 | K133: =Precalculation!J31 -> 0.9275 | L133: =Precalculation!J32 -> 0.94125 | M133: =Precalculation!J33 -> 0.955 | N133: =Precalculation!J34 -> 0.96875 | O133: =Precalculation!J35 -> 0.9825 | P133: =Precalculation!J36 -> 0.99625 | Q133: =Precalculation!J37 -> 1.01
A134: 5b | B134: k | C134: 50 | D134: 5bk50 | E134: 1.88 | F134: 0.75 | G134: 1.13 | I134: =Precalculation!K29 -> 1.13 | J134: =Precalculation!K30 -> 1.1425 | K134: =Precalculation!K31 -> 1.155 | L134: =Precalculation!K32 -> 1.1675 | M134: =Precalculation!K33 -> 1.18 | N134: =Precalculation!K34 -> 1.1925 | O134: =Precalculation!K35 -> 1.205 | P134: =Precalculation!K36 -> 1.2175 | Q134: =Precalculation!K37 -> 1.23
A135: 5c | B135: k | C135: 50 | D135: 5ck50 | E135: 1.98 | F135: 0.85 | G135: 1.13 | I135: =Precalculation!L29 -> 1.44 | J135: =Precalculation!L30 -> 1.44625 | K135: =Precalculation!L31 -> 1.4525 | L135: =Precalculation!L32 -> 1.45875 | M135: =Precalculation!L33 -> 1.465 | N135: =Precalculation!L34 -> 1.47125 | O135: =Precalculation!L35 -> 1.4775 | P135: =Precalculation!L36 -> 1.48375 | Q135: =Precalculation!L37 -> 1.49
A136: 6a | B136: k | C136: 50 | D136: 6ak50 | E136: 2.28 | F136: 1.05 | G136: 1.23 | I136: =Precalculation!M29 -> 2.16 | J136: =Precalculation!M30 -> 2.14 | K136: =Precalculation!M31 -> 2.12 | L136: =Precalculation!M32 -> 2.1 | M136: =Precalculation!M33 -> 2.08 | N136: =Precalculation!M34 -> 2.06 | O136: =Precalculation!M35 -> 2.04 | P136: =Precalculation!M36 -> 2.02 | Q136: =Precalculation!M37 -> 2
A137: 6b | B137: k | C137: 50 | D137: 6bk50 | E137: 2.63 | F137: 1.4 | G137: 1.23 | I137: =Precalculation!N29 -> 2.67 | J137: =Precalculation!N30 -> 2.645 | K137: =Precalculation!N31 -> 2.62 | L137: =Precalculation!N32 -> 2.595 | M137: =Precalculation!N33 -> 2.57 | N137: =Precalculation!N34 -> 2.545 | O137: =Precalculation!N35 -> 2.52 | P137: =Precalculation!N36 -> 2.495 | Q137: =Precalculation!N37 -> 2.47
A138: 7 | B138: k | C138: 50 | D138: 7k50 | E138: 3.27 | F138: 2.05 | G138: 1.22 | I138: =Precalculation!O29 -> 4.83 | J138: =Precalculation!O30 -> 4.70875 | K138: =Precalculation!O31 -> 4.5875 | L138: =Precalculation!O32 -> 4.46625 | M138: =Precalculation!O33 -> 4.345 | N138: =Precalculation!O34 -> 4.22375 | O138: =Precalculation!O35 -> 4.1025 | P138: =Precalculation!O36 -> 3.98125 | Q138: =Precalculation!O37 -> 3.86
A139: 8 | B139: k | C139: 50 | D139: 8k50 | E139: 3.75 | F139: 2.05 | G139: 1.7 | I139: =Precalculation!P29 -> 9.82 | J139: =Precalculation!P30 -> 9.48625 | K139: =Precalculation!P31 -> 9.1525 | L139: =Precalculation!P32 -> 8.81875 | M139: =Precalculation!P33 -> 8.485 | N139: =Precalculation!P34 -> 8.15125 | O139: =Precalculation!P35 -> 7.8175 | P139: =Precalculation!P36 -> 7.48375 | Q139: =Precalculation!P37 -> 7.15
A140: A | B140: k | C140: 50 | D140: Ak50 | E140: 1.55 | F140: 0.45 | G140: 1.1
A141: B | B141: k | C141: 50 | D141: Bk50 | E141: 1.94 | F141: 0.81 | G141: 1.13
A142: C | B142: k | C142: 50 | D142: Ck50 | E142: 3.32 | F142: 2.1 | G142: 1.22
A143: 1 | B143: m | C143: 50 | D143: 1m50 | E143: 0.85 | F143: 0.3 | G143: =E143-F143 -> 0.55 | I143: =I127 -> 0.12 | J143: 0.12875 | K143: 0.1375 | L143: 0.14625 | M143: 0.155 | N143: 0.16375 | O143: 0.1725 | P143: 0.18125 | Q143: 0.19
A144: 2 | B144: m | C144: 50 | D144: 2m50 | E144: 0.855 | F144: 0.325 | G144: =E144-F144 -> 0.53 | I144: =I128 -> 0.24 | J144: 0.24875 | K144: 0.2575 | L144: 0.26625 | M144: 0.275 | N144: 0.28375 | O144: 0.2925 | P144: 0.30125 | Q144: 0.31
A145: 3 | B145: m | C145: 50 | D145: 3m50 | E145: 0.84 | F145: 0.35 | G145: 0.49 | I145: =I129 -> 0.36 | J145: 0.37125 | K145: 0.3825 | L145: 0.39375 | M145: 0.405 | N145: 0.41625 | O145: 0.4275 | P145: 0.43875 | Q145: 0.45
A146: 4a | B146: m | C146: 50 | D146: 4am50 | E146: 1.325 | F146: 0.425 | G146: 0.9 | I146: =I130 -> 0.47 | J146: 0.48375 | K146: 0.4975 | L146: 0.51125 | M146: 0.525 | N146: 0.53875 | O146: 0.5525 | P146: 0.56625 | Q146: 0.58
A147: 4b | B147: m | C147: 50 | D147: 4bm50 | E147: 1.4 | F147: 0.5 | G147: 0.9 | I147: =I131 -> 0.6 | J147: 0.61375 | K147: 0.6275 | L147: 0.64125 | M147: 0.655 | N147: 0.66875 | O147: 0.6825 | P147: 0.69625 | Q147: 0.71
A148: 4c | B148: m | C148: 50 | D148: 4cm50 | E148: 1.5 | F148: 0.6 | G148: 0.9 | I148: =I132 -> 0.67 | J148: 0.68625 | K148: 0.7025 | L148: 0.71875 | M148: 0.735 | N148: 0.75125 | O148: 0.7675 | P148: 0.78375 | Q148: 0.8
A149: 5a | B149: m | C149: 50 | D149: 5am50 | E149: 1.605 | F149: 0.675 | G149: 0.93 | I149: =I133 -> 0.9 | J149: 0.91375 | K149: 0.9275 | L149: 0.94125 | M149: 0.955 | N149: 0.96875 | O149: 0.9825 | P149: 0.99625 | Q149: 1.01
A150: 5b | B150: m | C150: 50 | D150: 5bm50 | E150: 1.68 | F150: 0.75 | G150: 0.93 | I150: =I134 -> 1.13 | J150: 1.1425 | K150: 1.155 | L150: 1.1675 | M150: 1.18 | N150: 1.1925 | O150: 1.205 | P150: 1.2175 | Q150: 1.23
A151: 5c | B151: m | C151: 50 | D151: 5cm50 | E151: 1.78 | F151: 0.85 | G151: 0.93 | I151: =I135 -> 1.44 | J151: 1.44625 | K151: 1.4525 | L151: 1.45875 | M151: 1.465 | N151: 1.47125 | O151: 1.4775 | P151: 1.48375 | Q151: 1.49
A152: 6a | B152: m | C152: 50 | D152: 6am50 | E152: 2.08 | F152: 1.05 | G152: 1.03 | I152: =I136 -> 2.16 | J152: 2.14 | K152: 2.12 | L152: 2.1 | M152: 2.08 | N152: 2.06 | O152: 2.04 | P152: 2.02 | Q152: 2
A153: 6b | B153: m | C153: 50 | D153: 6bm50 | E153: 2.43 | F153: 1.4 | G153: 1.03 | I153: =I137 -> 2.67 | J153: 2.645 | K153: 2.62 | L153: 2.595 | M153: 2.57 | N153: 2.545 | O153: 2.52 | P153: 2.495 | Q153: 2.47
A154: 7 | B154: m | C154: 50 | D154: 7m50 | E154: 3.07 | F154: 2.05 | G154: 1.02 | I154: =I138 -> 4.83 | J154: 4.70875 | K154: 4.5875 | L154: 4.46625 | M154: 4.345 | N154: 4.22375 | O154: 4.1025 | P154: 3.98125 | Q154: 3.86
A155: 8 | B155: m | C155: 50 | D155: 8m50 | E155: 3.55 | F155: 2.05 | G155: 1.5 | I155: =I139 -> 9.82 | J155: 9.48625 | K155: 9.1525 | L155: 8.81875 | M155: 8.485 | N155: 8.15125 | O155: 7.8175 | P155: 7.48375 | Q155: 7.15
A156: A | B156: m | C156: 50 | D156: Am50 | E156: 1.35 | F156: 0.45 | G156: 0.9
A157: B | B157: m | C157: 50 | D157: Bm50 | E157: 1.74 | F157: 0.81 | G157: 0.93
A158: C | B158: m | C158: 50 | D158: Cm50 | E158: 3.12 | F158: 2.1 | G158: 1.02
A159: 1 | B159: g | C159: 50 | D159: 1g50 | E159: 0.7 | F159: 0.3 | G159: =E159-F159 -> 0.4 | I159: =I127 -> 0.12 | J159: 0.12875 | K159: 0.1375 | L159: 0.14625 | M159: 0.155 | N159: 0.16375 | O159: 0.1725 | P159: 0.18125 | Q159: 0.19
A160: 2 | B160: g | C160: 50 | D160: =CONCATENATE(A160,B160,C160) -> 2g50 | E160: 0.705 | F160: 0.325 | G160: =E160-F160 -> 0.38 | I160: =I128 -> 0.24 | J160: 0.24875 | K160: 0.2575 | L160: 0.26625 | M160: 0.275 | N160: 0.28375 | O160: 0.2925 | P160: 0.30125 | Q160: 0.31
A161: 3 | B161: g | C161: 50 | D161: 3g50 | E161: 0.69 | F161: 0.35 | G161: 0.34 | I161: =I129 -> 0.36 | J161: 0.37125 | K161: 0.3825 | L161: 0.39375 | M161: 0.405 | N161: 0.41625 | O161: 0.4275 | P161: 0.43875 | Q161: 0.45
A162: 4a | B162: g | C162: 50 | D162: 4ag50 | E162: 0.975 | F162: 0.425 | G162: 0.55 | I162: =I130 -> 0.47 | J162: 0.48375 | K162: 0.4975 | L162: 0.51125 | M162: 0.525 | N162: 0.53875 | O162: 0.5525 | P162: 0.56625 | Q162: 0.58
A163: 4b | B163: g | C163: 50 | D163: 4bg50 | E163: 1.05 | F163: 0.5 | G163: 0.55 | I163: =I131 -> 0.6 | J163: 0.61375 | K163: 0.6275 | L163: 0.64125 | M163: 0.655 | N163: 0.66875 | O163: 0.6825 | P163: 0.69625 | Q163: 0.71
A164: 4c | B164: g | C164: 50 | D164: 4cg50 | E164: 1.15 | F164: 0.6 | G164: 0.55 | I164: =I132 -> 0.67 | J164: 0.68625 | K164: 0.7025 | L164: 0.71875 | M164: 0.735 | N164: 0.75125 | O164: 0.7675 | P164: 0.78375 | Q164: 0.8
A165: 5a | B165: g | C165: 50 | D165: 5ag50 | E165: 1.255 | F165: 0.675 | G165: 0.58 | I165: =I133 -> 0.9 | J165: 0.91375 | K165: 0.9275 | L165: 0.94125 | M165: 0.955 | N165: 0.96875 | O165: 0.9825 | P165: 0.99625 | Q165: 1.01
A166: 5b | B166: g | C166: 50 | D166: 5bg50 | E166: 1.33 | F166: 0.75 | G166: 0.58 | I166: =I134 -> 1.13 | J166: 1.1425 | K166: 1.155 | L166: 1.1675 | M166: 1.18 | N166: 1.1925 | O166: 1.205 | P166: 1.2175 | Q166: 1.23
A167: 5c | B167: g | C167: 50 | D167: 5cg50 | E167: 1.43 | F167: 0.85 | G167: 0.58 | I167: =I135 -> 1.44 | J167: 1.44625 | K167: 1.4525 | L167: 1.45875 | M167: 1.465 | N167: 1.47125 | O167: 1.4775 | P167: 1.48375 | Q167: 1.49
A168: 6a | B168: g | C168: 50 | D168: 6ag50 | E168: 1.78 | F168: 1.05 | G168: 0.73 | I168: =I136 -> 2.16 | J168: 2.14 | K168: 2.12 | L168: 2.1 | M168: 2.08 | N168: 2.06 | O168: 2.04 | P168: 2.02 | Q168: 2
A169: 6b | B169: g | C169: 50 | D169: 6bg50 | E169: 2.13 | F169: 1.4 | G169: 0.73 | I169: =I137 -> 2.67 | J169: 2.645 | K169: 2.62 | L169: 2.595 | M169: 2.57 | N169: 2.545 | O169: 2.52 | P169: 2.495 | Q169: 2.47
A170: 7 | B170: g | C170: 50 | D170: 7g50 | E170: 2.77 | F170: 2.05 | G170: 0.72 | I170: =I138 -> 4.83 | J170: 4.70875 | K170: 4.5875 | L170: 4.46625 | M170: 4.345 | N170: 4.22375 | O170: 4.1025 | P170: 3.98125 | Q170: 3.86
A171: 8 | B171: g | C171: 50 | D171: 8g50 | E171: 3.1 | F171: 2.05 | G171: 1.05 | I171: =I139 -> 9.82 | J171: 9.48625 | K171: 9.1525 | L171: 8.81875 | M171: 8.485 | N171: 8.15125 | O171: 7.8175 | P171: 7.48375 | Q171: 7.15
A172: A | B172: g | C172: 50 | D172: Ag50 | E172: 1 | F172: 0.45 | G172: 0.55
A173: B | B173: g | C173: 50 | D173: Bg50 | E173: 1.39 | F173: 0.81 | G173: 0.58
A174: C | B174: g | C174: 50 | D174: Cg50 | E174: 2.82 | F174: 2.1 | G174: 0.72
A175: 1 | B175: k | C175: 70 | D175: 1k70 | I175: =Precalculation!D13 -> 0.12 | J175: =Precalculation!D14 -> 0.12625 | K175: =Precalculation!D15 -> 0.1325 | L175: =Precalculation!D16 -> 0.13875 | M175: =Precalculation!D17 -> 0.145 | N175: =Precalculation!D18 -> 0.15125 | O175: =Precalculation!D19 -> 0.1575 | P175: =Precalculation!D20 -> 0.16375 | Q175: =Precalculation!D21 -> 0.17
A176: 2 | B176: k | C176: 70 | D176: 2k70 | I176: =Precalculation!E13 -> 0.23 | J176: =Precalculation!E14 -> 0.23625 | K176: =Precalculation!E15 -> 0.2425 | L176: =Precalculation!E16 -> 0.24875 | M176: =Precalculation!E17 -> 0.255 | N176: =Precalculation!E18 -> 0.26125 | O176: =Precalculation!E19 -> 0.2675 | P176: =Precalculation!E20 -> 0.27375 | Q176: =Precalculation!E21 -> 0.28
A177: 3 | B177: k | C177: 70 | D177: 3k70 | I177: =Precalculation!F13 -> 0.34 | J177: =Precalculation!F14 -> 0.34875 | K177: =Precalculation!F15 -> 0.3575 | L177: =Precalculation!F16 -> 0.36625 | M177: =Precalculation!F17 -> 0.375 | N177: =Precalculation!F18 -> 0.38375 | O177: =Precalculation!F19 -> 0.3925 | P177: =Precalculation!F20 -> 0.40125 | Q177: =Precalculation!F21 -> 0.41
A178: 4a | B178: k | C178: 70 | D178: 4ak70 | I178: =Precalculation!G13 -> 0.45 | J178: =Precalculation!G14 -> 0.46 | K178: =Precalculation!G15 -> 0.47 | L178: =Precalculation!G16 -> 0.48 | M178: =Precalculation!G17 -> 0.49 | N178: =Precalculation!G18 -> 0.5 | O178: =Precalculation!G19 -> 0.51 | P178: =Precalculation!G20 -> 0.52 | Q178: =Precalculation!G21 -> 0.53
A179: 4b | B179: k | C179: 70 | D179: 4bk70 | I179: =Precalculation!H13 -> 0.57 | J179: =Precalculation!H14 -> 0.58 | K179: =Precalculation!H15 -> 0.59 | L179: =Precalculation!H16 -> 0.6 | M179: =Precalculation!H17 -> 0.61 | N179: =Precalculation!H18 -> 0.62 | O179: =Precalculation!H19 -> 0.63 | P179: =Precalculation!H20 -> 0.64 | Q179: =Precalculation!H21 -> 0.65
A180: 4c | B180: k | C180: 70 | D180: 4ck70 | I180: =Precalculation!I13 -> 0.63 | J180: =Precalculation!I14 -> 0.64125 | K180: =Precalculation!I15 -> 0.6525 | L180: =Precalculation!I16 -> 0.66375 | M180: =Precalculation!I17 -> 0.675 | N180: =Precalculation!I18 -> 0.68625 | O180: =Precalculation!I19 -> 0.6975 | P180: =Precalculation!I20 -> 0.70875 | Q180: =Precalculation!I21 -> 0.72
A181: 5a | B181: k | C181: 70 | D181: 5ak70 | I181: =Precalculation!J13 -> 0.83 | J181: =Precalculation!J14 -> 0.84 | K181: =Precalculation!J15 -> 0.85 | L181: =Precalculation!J16 -> 0.86 | M181: =Precalculation!J17 -> 0.87 | N181: =Precalculation!J18 -> 0.88 | O181: =Precalculation!J19 -> 0.89 | P181: =Precalculation!J20 -> 0.9 | Q181: =Precalculation!J21 -> 0.91
A182: 5b | B182: k | C182: 70 | D182: 5bk70 | I182: =Precalculation!K13 -> 1.01 | J182: =Precalculation!K14 -> 1.02 | K182: =Precalculation!K15 -> 1.03 | L182: =Precalculation!K16 -> 1.04 | M182: =Precalculation!K17 -> 1.05 | N182: =Precalculation!K18 -> 1.06 | O182: =Precalculation!K19 -> 1.07 | P182: =Precalculation!K20 -> 1.08 | Q182: =Precalculation!K21 -> 1.09
A183: 5c | B183: k | C183: 70 | D183: 5ck70 | I183: =Precalculation!L13 -> 1.26 | J183: =Precalculation!L14 -> 1.26375 | K183: =Precalculation!L15 -> 1.2675 | L183: =Precalculation!L16 -> 1.27125 | M183: =Precalculation!L17 -> 1.275 | N183: =Precalculation!L18 -> 1.27875 | O183: =Precalculation!L19 -> 1.2825 | P183: =Precalculation!L20 -> 1.28625 | Q183: =Precalculation!L21 -> 1.29
A184: 6a | B184: k | C184: 70 | D184: 6ak70 | I184: =Precalculation!M13 -> 1.8 | J184: =Precalculation!M14 -> 1.7875 | K184: =Precalculation!M15 -> 1.775 | L184: =Precalculation!M16 -> 1.7625 | M184: =Precalculation!M17 -> 1.75 | N184: =Precalculation!M18 -> 1.7375 | O184: =Precalculation!M19 -> 1.725 | P184: =Precalculation!M20 -> 1.7125 | Q184: =Precalculation!M21 -> 1.7
A185: 6b | B185: k | C185: 70 | D185: 6bk70 | I185: =Precalculation!N13 -> 2.21 | J185: =Precalculation!N14 -> 2.19375 | K185: =Precalculation!N15 -> 2.1775 | L185: =Precalculation!N16 -> 2.16125 | M185: =Precalculation!N17 -> 2.145 | N185: =Precalculation!N18 -> 2.12875 | O185: =Precalculation!N19 -> 2.1125 | P185: =Precalculation!N20 -> 2.09625 | Q185: =Precalculation!N21 -> 2.08
A186: 7 | B186: k | C186: 70 | D186: 7k70 | I186: =Precalculation!O13 -> 3.74 | J186: =Precalculation!O14 -> 3.66125 | K186: =Precalculation!O15 -> 3.5825 | L186: =Precalculation!O16 -> 3.50375 | M186: =Precalculation!O17 -> 3.425 | N186: =Precalculation!O18 -> 3.34625 | O186: =Precalculation!O19 -> 3.2675 | P186: =Precalculation!O20 -> 3.18875 | Q186: =Precalculation!O21 -> 3.11
A187: 8 | B187: k | C187: 70 | D187: 8k70 | I187: =Precalculation!P13 -> 7.13 | J187: =Precalculation!P14 -> 6.91125 | K187: =Precalculation!P15 -> 6.6925 | L187: =Precalculation!P16 -> 6.47375 | M187: =Precalculation!P17 -> 6.255 | N187: =Precalculation!P18 -> 6.03625 | O187: =Precalculation!P19 -> 5.8175 | P187: =Precalculation!P20 -> 5.59875 | Q187: =Precalculation!P21 -> 5.38
A188: A | B188: k | C188: 70 | D188: Ak70
A189: B | B189: k | C189: 70 | D189: Bk70
A190: C | B190: k | C190: 70 | D190: Ck70
A191: 1 | B191: m | C191: 70 | D191: 1m70 | I191: =I175 -> 0.12 | J191: 0.12625 | K191: 0.1325 | L191: 0.13875 | M191: 0.145 | N191: 0.15125 | O191: 0.1575 | P191: 0.16375 | Q191: 0.17
A192: 2 | B192: m | C192: 70 | D192: 2m70 | I192: =I176 -> 0.23 | J192: 0.23625 | K192: 0.2425 | L192: 0.24875 | M192: 0.255 | N192: 0.26125 | O192: 0.2675 | P192: 0.27375 | Q192: 0.28
A193: 3 | B193: m | C193: 70 | D193: 3m70 | I193: =I177 -> 0.34 | J193: 0.34875 | K193: 0.3575 | L193: 0.36625 | M193: 0.375 | N193: 0.38375 | O193: 0.3925 | P193: 0.40125 | Q193: 0.41
A194: 4a | B194: m | C194: 70 | D194: 4am70 | I194: =I178 -> 0.45 | J194: 0.46 | K194: 0.47 | L194: 0.48 | M194: 0.49 | N194: 0.5 | O194: 0.51 | P194: 0.52 | Q194: 0.53
A195: 4b | B195: m | C195: 70 | D195: 4bm70 | I195: =I179 -> 0.57 | J195: 0.58 | K195: 0.59 | L195: 0.6 | M195: 0.61 | N195: 0.62 | O195: 0.63 | P195: 0.64 | Q195: 0.65
A196: 4c | B196: m | C196: 70 | D196: 4cm70 | I196: =I180 -> 0.63 | J196: 0.64125 | K196: 0.6525 | L196: 0.66375 | M196: 0.675 | N196: 0.68625 | O196: 0.6975 | P196: 0.70875 | Q196: 0.72
A197: 5a | B197: m | C197: 70 | D197: 5am70 | I197: =I181 -> 0.83 | J197: 0.84 | K197: 0.85 | L197: 0.86 | M197: 0.87 | N197: 0.88 | O197: 0.89 | P197: 0.9 | Q197: 0.91
A198: 5b | B198: m | C198: 70 | D198: 5bm70 | I198: =I182 -> 1.01 | J198: 1.02 | K198: 1.03 | L198: 1.04 | M198: 1.05 | N198: 1.06 | O198: 1.07 | P198: 1.08 | Q198: 1.09
A199: 5c | B199: m | C199: 70 | D199: 5cm70 | I199: =I183 -> 1.26 | J199: 1.26375 | K199: 1.2675 | L199: 1.27125 | M199: 1.275 | N199: 1.27875 | O199: 1.2825 | P199: 1.28625 | Q199: 1.29
A200: 6a | B200: m | C200: 70 | D200: 6am70 | I200: =I184 -> 1.8 | J200: 1.7875 | K200: 1.775 | L200: 1.7625 | M200: 1.75 | N200: 1.7375 | O200: 1.725 | P200: 1.7125 | Q200: 1.7
A201: 6b | B201: m | C201: 70 | D201: 6bm70 | I201: =I185 -> 2.21 | J201: 2.19375 | K201: 2.1775 | L201: 2.16125 | M201: 2.145 | N201: 2.12875 | O201: 2.1125 | P201: 2.09625 | Q201: 2.08
A202: 7 | B202: m | C202: 70 | D202: 7m70 | I202: =I186 -> 3.74 | J202: 3.66125 | K202: 3.5825 | L202: 3.50375 | M202: 3.425 | N202: 3.34625 | O202: 3.2675 | P202: 3.18875 | Q202: 3.11
A203: 8 | B203: m | C203: 70 | D203: 8m70 | I203: =I187 -> 7.13 | J203: 6.91125 | K203: 6.6925 | L203: 6.47375 | M203: 6.255 | N203: 6.03625 | O203: 5.8175 | P203: 5.59875 | Q203: 5.38
... 19 more rows

Sheet Precalculation (hidden)
A1: Berechnung der Marge lt. Precalculatio-Tool: Annahmen: Österreich, < 50 Mio., Holding, 3 Months, EUR, non revolving loan, No LEA, monthly principal, austria -CORPALL, Value of Collateral for SRC/ERM = 70, 50, 20, 0% Value of Collateral for RWA imme 0%
A2: Ergebnis ist: | B2: VOLUMSUNABHÄNGIG und über Laufzeit bei gleicher Bonität zw. 2 und 10 Jahren annähernd linear
A5: STAND: | B5: Precalculation_201401
A8: 70% Sicherheit | C8: Li-Kosten | D8: 1 | E8: 2 | F8: 3 | G8: 4a | H8: 4b | I8: 4c | J8: 5a | K8: 5b | L8: 5c | M8: 6a | N8: 6b | O8: 7 | P8: 8
A9: Erfassung der EVA Marge lt. Tool | B9: LZ 2 Jahre | C9: 0.1 | D9: 0.22 | E9: 0.33 | F9: 0.44 | G9: 0.55 | H9: 0.67 | I9: 0.73 | J9: 0.93 | K9: 1.11 | L9: 1.36 | M9: 1.9 | N9: 2.31 | O9: 3.84 | P9: 7.23
A10: inkl. Li-Kosten | B10: LZ 10 Jahre | C10: 0.44 | D10: 0.61 | E10: 0.72 | F10: 0.85 | G10: 0.97 | H10: 1.09 | I10: 1.16 | J10: 1.35 | K10: 1.53 | L10: 1.73 | M10: 2.14 | N10: 2.52 | O10: 3.55 | P10: 5.82
A12: Aufschläge lt. Precalculatio-Tool ohne Li-Kosten | C12: Laufzeit | D12: 1 | E12: 2 | F12: 3 | G12: 4a | H12: 4b | I12: 4c | J12: 5a | K12: 5b | L12: 5c | M12: 6a | N12: 6b | O12: 7 | P12: 8
C13: 2 | D13: =D9-$C$9 -> 0.12 | E13: 0.23 | F13: 0.34 | G13: 0.45 | H13: 0.57 | I13: 0.63 | J13: 0.83 | K13: 1.01 | L13: 1.26 | M13: 1.8 | N13: 2.21 | O13: 3.74 | P13: 7.13
C14: 3 | D14: =(D13+D15)/2 -> 0.12625 | E14: =(E13+E15)/2 -> 0.23625 | F14: 0.34875 | G14: 0.46 | H14: 0.58 | I14: 0.64125 | J14: 0.84 | K14: 1.02 | L14: 1.26375 | M14: 1.7875 | N14: 2.19375 | O14: 3.66125 | P14: 6.91125
C15: 4 | D15: =(D17+D13)/2 -> 0.1325 | E15: =(E17+E13)/2 -> 0.2425 | F15: 0.3575 | G15: 0.47 | H15: 0.59 | I15: 0.6525 | J15: 0.85 | K15: 1.03 | L15: 1.2675 | M15: 1.775 | N15: 2.1775 | O15: 3.5825 | P15: 6.6925
C16: 5 | D16: =(D15+D17)/2 -> 0.13875 | E16: =(E15+E17)/2 -> 0.24875 | F16: 0.36625 | G16: 0.48 | H16: 0.6 | I16: 0.66375 | J16: 0.86 | K16: 1.04 | L16: 1.27125 | M16: 1.7625 | N16: 2.16125 | O16: 3.50375 | P16: 6.47375
C17: 6 | D17: =(D13+D21)/2 -> 0.145 | E17: =(E13+E21)/2 -> 0.255 | F17: 0.375 | G17: 0.49 | H17: 0.61 | I17: 0.675 | J17: 0.87 | K17: 1.05 | L17: 1.275 | M17: 1.75 | N17: 2.145 | O17: 3.425 | P17: 6.255
C18: 7 | D18: =(D17+D19)/2 -> 0.15125 | E18: =(E17+E19)/2 -> 0.26125 | F18: 0.38375 | G18: 0.5 | H18: 0.62 | I18: 0.68625 | J18: 0.88 | K18: 1.06 | L18: 1.27875 | M18: 1.7375 | N18: 2.12875 | O18: 3.34625 | P18: 6.03625
C19: 8 | D19: =(D21+D17)/2 -> 0.1575 | E19: =(E21+E17)/2 -> 0.2675 | F19: 0.3925 | G19: 0.51 | H19: 0.63 | I19: 0.6975 | J19: 0.89 | K19: 1.07 | L19: 1.2825 | M19: 1.725 | N19: 2.1125 | O19: 3.2675 | P19: 5.8175
C20: 9 | D20: =(D19+D21)/2 -> 0.16375 | E20: =(E19+E21)/2 -> 0.27375 | F20: 0.40125 | G20: 0.52 | H20: 0.64 | I20: 0.70875 | J20: 0.9 | K20: 1.08 | L20: 1.28625 | M20: 1.7125 | N20: 2.09625 | O20: 3.18875 | P20: 5.59875
C21: 10 | D21: =D10-$C$10 -> 0.17 | E21: =E10-$C$10 -> 0.28 | F21: 0.41 | G21: 0.53 | H21: 0.65 | I21: 0.72 | J21: 0.91 | K21: 1.09 | L21: 1.29 | M21: 1.7 | N21: 2.08 | O21: 3.11 | P21: 5.38
A24: 50% Sicherheit | C24: =C8 -> Li-Kosten | D24: 1 | E24: 2 | F24: 3 | G24: 4a | H24: 4b | I24: 4c | J24: 5a | K24: 5b | L24: 5c | M24: 6a | N24: 6b | O24: 7 | P24: 8
A25: Erfassung der EVA Marge lt. Tool | B25: LZ 2 Jahre | C25: =C9 -> 0.1 | D25: 0.22 | E25: 0.34 | F25: 0.46 | G25: 0.57 | H25: 0.7 | I25: 0.77 | J25: 1 | K25: 1.23 | L25: 1.54 | M25: 2.26 | N25: 2.77 | O25: 4.93 | P25: 9.92
A26: inkl. Li-Kosten | B26: LZ 10 Jahre | C26: =C10 -> 0.44 | D26: 0.63 | E26: 0.75 | F26: 0.89 | G26: 1.02 | H26: 1.15 | I26: 1.24 | J26: 1.45 | K26: 1.67 | L26: 1.93 | M26: 2.44 | N26: 2.91 | O26: 4.3 | P26: 7.59
A28: Aufschläge lt. Precalculatio-Tool ohne Li-Kosten | C28: Laufzeit | D28: 1 | E28: 2 | F28: 3 | G28: 4a | H28: 4b | I28: 4c | J28: 5a | K28: 5b | L28: 5c | M28: 6a | N28: 6b | O28: 7 | P28: 8
C29: 2 | D29: =D25-$C$9 -> 0.12 | E29: 0.24 | F29: 0.36 | G29: 0.47 | H29: 0.6 | I29: 0.67 | J29: 0.9 | K29: 1.13 | L29: 1.44 | M29: 2.16 | N29: 2.67 | O29: 4.83 | P29: 9.82
C30: 3 | D30: =(D29+D31)/2 -> 0.12875 | E30: 0.24875 | F30: 0.37125 | G30: 0.48375 | H30: 0.61375 | I30: 0.68625 | J30: 0.91375 | K30: 1.1425 | L30: 1.44625 | M30: 2.14 | N30: 2.645 | O30: 4.70875 | P30: 9.48625
C31: 4 | D31: =(D33+D29)/2 -> 0.1375 | E31: =(E33+E29)/2 -> 0.2575 | F31: 0.3825 | G31: 0.4975 | H31: 0.6275 | I31: 0.7025 | J31: 0.9275 | K31: 1.155 | L31: 1.4525 | M31: 2.12 | N31: 2.62 | O31: 4.5875 | P31: 9.1525
C32: 5 | D32: =(D31+D33)/2 -> 0.14625 | E32: 0.26625 | F32: 0.39375 | G32: 0.51125 | H32: 0.64125 | I32: 0.71875 | J32: 0.94125 | K32: 1.1675 | L32: 1.45875 | M32: 2.1 | N32: 2.595 | O32: 4.46625 | P32: 8.81875
C33: 6 | D33: =(D29+D37)/2 -> 0.155 | E33: =(E29+E37)/2 -> 0.275 | F33: 0.405 | G33: 0.525 | H33: =(H29+H37)/2 -> 0.655 | I33: 0.735 | J33: 0.955 | K33: 1.18 | L33: 1.465 | M33: 2.08 | N33: 2.57 | O33: 4.345 | P33: 8.485
C34: 7 | D34: =(D33+D35)/2 -> 0.16375 | E34: 0.28375 | F34: 0.41625 | G34: 0.53875 | H34: 0.66875 | I34: 0.75125 | J34: 0.96875 | K34: 1.1925 | L34: 1.47125 | M34: 2.06 | N34: 2.545 | O34: 4.22375 | P34: 8.15125
C35: 8 | D35: =(D37+D33)/2 -> 0.1725 | E35: =(E37+E33)/2 -> 0.2925 | F35: 0.4275 | G35: 0.5525 | H35: 0.6825 | I35: 0.7675 | J35: 0.9825 | K35: 1.205 | L35: 1.4775 | M35: 2.04 | N35: 2.52 | O35: 4.1025 | P35: 7.8175
C36: 9 | D36: =(D35+D37)/2 -> 0.18125 | E36: 0.30125 | F36: 0.43875 | G36: 0.56625 | H36: 0.69625 | I36: 0.78375 | J36: 0.99625 | K36: 1.2175 | L36: 1.48375 | M36: 2.02 | N36: 2.495 | O36: 3.98125 | P36: 7.48375
C37: 10 | D37: =D26-$C$10 -> 0.19 | E37: 0.31 | F37: 0.45 | G37: 0.58 | H37: 0.71 | I37: 0.8 | J37: 1.01 | K37: 1.23 | L37: 1.49 | M37: 2 | N37: 2.47 | O37: 3.86 | P37: 7.15
A40: 20% Sicherheit | C40: =C24 -> Li-Kosten | D40: 1 | E40: 2 | F40: 3 | G40: 4a | H40: 4b | I40: 4c | J40: 5a | K40: 5b | L40: 5c | M40: 6a | N40: 6b | O40: 7 | P40: 8
A41: Erfassung der EVA Marge lt. Tool | B41: LZ 2 Jahre | C41: =C25 -> 0.1 | D41: 0.23 | E41: 0.35 | F41: 0.49 | G41: 0.61 | H41: 0.75 | I41: 0.83 | J41: 1.11 | K41: 1.4 | L41: 1.83 | M41: 2.81 | N41: 3.46 | O41: 6.57 | P41: 13.95
A42: inkl. Li-Kosten | B42: LZ 10 Jahre | C42: =C26 -> 0.44 | D42: 0.66 | E42: 0.79 | F42: 0.95 | G42: 1.1 | H42: 1.24 | I42: 1.35 | J42: 1.61 | K42: 1.88 | L42: 2.23 | M42: 2.89 | N42: 3.49 | O42: 5.42 | P42: 10.25
A44: Aufschläge lt. Precalculatio-Tool ohne Li-Kosten | C44: Laufzeit | D44: 1 | E44: 2 | F44: 3 | G44: 4a | H44: 4b | I44: 4c | J44: 5a | K44: 5b | L44: 5c | M44: 6a | N44: 6b | O44: 7 | P44: 8
C45: 2 | D45: =D41-$C$9 -> 0.13 | E45: 0.25 | F45: 0.39 | G45: 0.51 | H45: 0.65 | I45: 0.73 | J45: 1.01 | K45: 1.3 | L45: 1.73 | M45: 2.71 | N45: 3.36 | O45: 6.47 | P45: 13.85
C46: 3 | D46: =(D45+D47)/2 -> 0.14125 | E46: 0.2625 | F46: 0.405 | G46: 0.52875 | H46: 0.66875 | I46: 0.7525 | J46: 1.03 | K46: 1.3175 | L46: 1.7375 | M46: 2.6775 | N46: 3.32125 | O46: 6.28375 | P46: 13.345
C47: 4 | D47: =(D49+D45)/2 -> 0.1525 | E47: =(E49+E45)/2 -> 0.275 | F47: 0.42 | G47: 0.5475 | H47: 0.6875 | I47: 0.775 | J47: 1.05 | K47: 1.335 | L47: 1.745 | M47: 2.645 | N47: 3.2825 | O47: 6.0975 | P47: 12.84
C48: 5 | D48: =(D47+D49)/2 -> 0.16375 | E48: 0.2875 | F48: 0.435 | G48: 0.56625 | H48: 0.70625 | I48: 0.7975 | J48: 1.07 | K48: 1.3525 | L48: 1.7525 | M48: 2.6125 | N48: 3.24375 | O48: 5.91125 | P48: 12.335
C49: 6 | D49: =(D45+D53)/2 -> 0.175 | E49: =(E45+E53)/2 -> 0.3 | F49: =(F45+F53)/2 -> 0.45 | G49: =(G45+G53)/2 -> 0.585 | H49: =(H45+H53)/2 -> 0.725 | I49: =(I45+I53)/2 -> 0.82 | J49: 1.09 | K49: 1.37 | L49: 1.76 | M49: 2.58 | N49: 3.205 | O49: 5.725 | P49: 11.83
C50: 7 | D50: =(D49+D51)/2 -> 0.18625 | E50: 0.3125 | F50: 0.465 | G50: 0.60375 | H50: 0.74375 | I50: 0.8425 | J50: 1.11 | K50: 1.3875 | L50: 1.7675 | M50: 2.5475 | N50: 3.16625 | O50: 5.53875 | P50: 11.325
C51: 8 | D51: =(D53+D49)/2 -> 0.1975 | E51: =(E53+E49)/2 -> 0.325 | F51: 0.48 | G51: 0.6225 | H51: 0.7625 | I51: 0.865 | J51: 1.13 | K51: 1.405 | L51: 1.775 | M51: 2.515 | N51: 3.1275 | O51: 5.3525 | P51: 10.82
C52: 9 | D52: =(D51+D53)/2 -> 0.20875 | E52: 0.3375 | F52: 0.495 | G52: 0.64125 | H52: 0.78125 | I52: 0.8875 | J52: 1.15 | K52: 1.4225 | L52: 1.7825 | M52: 2.4825 | N52: 3.08875 | O52: 5.16625 | P52: 10.315
C53: 10 | D53: =D42-$C$10 -> 0.22 | E53: 0.35 | F53: 0.51 | G53: 0.66 | H53: 0.8 | I53: 0.91 | J53: 1.17 | K53: 1.44 | L53: 1.79 | M53: 2.45 | N53: 3.05 | O53: 4.98 | P53: 9.81
A56: 0% Sicherheit | C56: =C40 -> Li-Kosten | D56: 1 | E56: 2 | F56: 3 | G56: 4a | H56: 4b | I56: 4c | J56: 5a | K56: 5b | L56: 5c | M56: 6a | N56: 6b | O56: 7 | P56: 8
A57: Erfassung der EVA Marge lt. Tool | B57: LZ 2 Jahre | C57: =C41 -> 0.1 | D57: 0.23 | E57: 0.35 | F57: 0.5 | G57: 0.63 | H57: 0.78 | I57: 0.86 | J57: 1.18 | K57: 1.52 | L57: 2.02 | M57: 3.17 | N57: 3.92 | O57: 7.66 | P57: 16.64
A58: inkl. Li-Kosten | B58: LZ 10 Jahre | C58: =C42 -> 0.44 | D58: 0.69 | E58: 0.81 | F58: 0.99 | G58: 1.15 | H58: 1.3 | I58: 1.43 | J58: 1.72 | K58: 2.02 | L58: 2.42 | M58: 3.2 | N58: 3.87 | O58: 6.17 | P58: 12.02
A60: Aufschläge lt. Precalculatio-Tool ohne Li-Kosten | C60: Laufzeit | D60: 1 | E60: 2 | F60: 3 | G60: 4a | H60: 4b | I60: 4c | J60: 5a | K60: 5b | L60: 5c | M60: 6a | N60: 6b | O60: 7 | P60: 8
C61: 2 | D61: =D57-$C$9 -> 0.13 | E61: 0.25 | F61: 0.4 | G61: 0.53 | H61: 0.68 | I61: 0.76 | J61: 1.08 | K61: 1.42 | L61: 1.92 | M61: 3.07 | N61: 3.82 | O61: 7.56 | P61: 16.54
C62: 3 | D62: =(D61+D63)/2 -> 0.145 | E62: 0.265 | F62: 0.41875 | G62: 0.5525 | H62: 0.7025 | I62: 0.78875 | J62: 1.105 | K62: 1.44 | L62: 1.9275 | M62: 3.03125 | N62: 3.77125 | O62: 7.33125 | P62: 15.92
C63: 4 | D63: =(D65+D61)/2 -> 0.16 | E63: =(E65+E61)/2 -> 0.28 | F63: 0.4375 | G63: 0.575 | H63: 0.725 | I63: 0.8175 | J63: 1.13 | K63: 1.46 | L63: 1.935 | M63: 2.9925 | N63: 3.7225 | O63: 7.1025 | P63: 15.3
C64: 5 | D64: =(D63+D65)/2 -> 0.175 | E64: 0.295 | F64: 0.45625 | G64: 0.5975 | H64: 0.7475 | I64: 0.84625 | J64: 1.155 | K64: 1.48 | L64: 1.9425 | M64: 2.95375 | N64: 3.67375 | O64: 6.87375 | P64: 14.68
C65: 6 | D65: =(D61+D69)/2 -> 0.19 | E65: =(E61+E69)/2 -> 0.31 | F65: =(F61+F69)/2 -> 0.475 | G65: =(G61+G69)/2 -> 0.62 | H65: =(H61+H69)/2 -> 0.77 | I65: =(I61+I69)/2 -> 0.875 | J65: 1.18 | K65: 1.5 | L65: 1.95 | M65: 2.915 | N65: 3.625 | O65: 6.645 | P65: 14.06
C66: 7 | D66: =(D65+D67)/2 -> 0.205 | E66: 0.325 | F66: 0.49375 | G66: 0.6425 | H66: 0.7925 | I66: 0.90375 | J66: 1.205 | K66: 1.52 | L66: 1.9575 | M66: 2.87625 | N66: 3.57625 | O66: 6.41625 | P66: 13.44
C67: 8 | D67: =(D69+D65)/2 -> 0.22 | E67: =(E69+E65)/2 -> 0.34 | F67: 0.5125 | G67: 0.665 | H67: 0.815 | I67: 0.9325 | J67: 1.23 | K67: 1.54 | L67: 1.965 | M67: 2.8375 | N67: 3.5275 | O67: 6.1875 | P67: 12.82
C68: 9 | D68: =(D67+D69)/2 -> 0.235 | E68: 0.355 | F68: 0.53125 | G68: 0.6875 | H68: 0.8375 | I68: 0.96125 | J68: 1.255 | K68: 1.56 | L68: 1.9725 | M68: 2.79875 | N68: 3.47875 | O68: 5.95875 | P68: 12.2
C69: 10 | D69: =D58-$C$10 -> 0.25 | E69: 0.37 | F69: 0.55 | G69: 0.71 | H69: 0.86 | I69: 0.99 | J69: 1.28 | K69: 1.58 | L69: 1.98 | M69: 2.76 | N69: 3.43 | O69: 5.73 | P69: 11.58

Sheet Interne Li-Kosten
A1: ="Liqui-Aufschläge "&K2&"/"&J2 -> Liqui-Aufschläge 01/2025 | E1: INTERNE KALKULATION | J1: Jahr | K1: Monat
A2: Verw-Aufschlag | C2: 0 | J2: 2025 | K2: 01
A3: Basis lt. EB | C3: incl. Verw-A | E3: Umrechnung für tilgende Werte
B4: AUT | C4: AUT | E4: Monate | F4: Endfällig | G4: Tilgend | H4: Differenz
A5: O/N | B5: 0 | C5: =B5+$C$2 -> 0 | E5: 0 | F5: =C5 -> 0 | G5: =C5 -> 0 | H5: =F5-G5 -> 0
A6: 1m | B6: 0 | C6: 0 | E6: 1 | F6: =C6 -> 0 | G6: =VLOOKUP(ROUNDUP(E6*0.6,0),$E$6:$F$185,2) -> 0 | H6: 0
A7: 2m | B7: 0 | C7: 0 | E7: 2 | F7: 0 | G7: 0 | H7: 0
A8: 3m | B8: 0 | C8: 0 | E8: 3 | F8: 0 | G8: 0 | H8: 0
A9: 4m | B9: 0 | C9: 0 | E9: 4 | F9: 0 | G9: 0 | H9: 0
A10: 5m | B10: 0 | C10: 0 | E10: 5 | F10: 0 | G10: 0 | H10: 0
A11: 6m | B11: 0 | C11: 0 | E11: 6 | F11: 0 | G11: 0 | H11: 0
A12: 7m | B12: 2 | C12: 2 | E12: 7 | F12: 2 | G12: 0 | H12: 2
A13: 8m | B13: 4 | C13: 4 | E13: 8 | F13: 4 | G13: 0 | H13: 4
A14: 9m | B14: 6 | C14: 6 | E14: 9 | F14: 6 | G14: 0 | H14: 6
A15: 10m | B15: 8 | C15: 8 | E15: 10 | F15: 8 | G15: 0 | H15: 8
A16: 11m | B16: 9 | C16: 9 | E16: 11 | F16: 9 | G16: 2 | H16: 7
A17: 1y | B17: 11 | C17: =B17+$C$2 -> 11 | E17: 12 | F17: 11 | G17: 4 | H17: 7
A18: 13m | B18: 1 | C18: =B18+$C$2 -> 1 | E18: 13 | F18: 1 | G18: 4 | H18: -3
A19: 14m | B19: 3 | C19: =B19+$C$2 -> 3 | E19: 14 | F19: 3 | G19: 6 | H19: -3
A20: 15m | B20: 4 | C20: 4 | E20: 15 | F20: 4 | G20: 6 | H20: -2
A21: 16m | B21: 6 | C21: 6 | E21: 16 | F21: 6 | G21: 8 | H21: -2
A22: 17m | B22: 7 | C22: 7 | E22: 17 | F22: 7 | G22: 9 | H22: -2
A23: 18m | B23: 9 | C23: 9 | E23: 18 | F23: 9 | G23: 9 | H23: 0
A24: 19m | B24: 9 | C24: 9 | E24: 19 | F24: 9 | G24: 11 | H24: -2
A25: 20m | B25: 10 | C25: 10 | E25: 20 | F25: 10 | G25: 11 | H25: -1
A26: 21m | B26: 12 | C26: 12 | E26: 21 | F26: 12 | G26: 1 | H26: 11
A27: 22m | B27: 13 | C27: 13 | E27: 22 | F27: 13 | G27: 3 | H27: 10
A28: 23m | B28: 15 | C28: =B28+$C$2 -> 15 | E28: 23 | F28: 15 | G28: 3 | H28: 12
A29: 2y | B29: 16 | C29: 16 | E29: 24 | F29: 16 | G29: 4 | H29: 12
A30: 3y | B30: 24 | C30: 24 | E30: 25 | F30: =F41 -> 24 | G30: 4 | H30: 20
A31: 4y | B31: 35 | C31: 35 | E31: 26 | F31: =F41 -> 24 | G31: 6 | H31: 18
A32: 5y | B32: 45 | C32: 45 | E32: 27 | F32: =F41 -> 24 | G32: 7 | H32: 17
A33: 6y | B33: 56 | C33: 56 | E33: 28 | F33: =F41 -> 24 | G33: 7 | H33: 17
A34: 7y | B34: 62 | C34: 62 | E34: 29 | F34: =F41 -> 24 | G34: 9 | H34: 15
A35: 8y | B35: 66 | C35: 66 | E35: 30 | F35: =F41 -> 24 | G35: 9 | H35: 15
A36: 9y | B36: 71 | C36: 71 | E36: 31 | F36: =F41 -> 24 | G36: 9 | H36: 15
A37: 10y | B37: 76 | C37: 76 | E37: 32 | F37: =F41 -> 24 | G37: 10 | H37: 14
A38: 15y | B38: 88 | C38: 88 | E38: 33 | F38: =F41 -> 24 | G38: 10 | H38: 14
A39: 20y | B39: 98 | C39: 98 | E39: 34 | F39: =F41 -> 24 | G39: 12 | H39: 12
A40: 25y | B40: 107 | C40: 107 | E40: 35 | F40: =F41 -> 24 | G40: 12 | H40: 12
A41: 30y | B41: 115 | C41: 115 | E41: 36 | F41: =C30 -> 24 | G41: 13 | H41: 11
E42: 37 | F42: =F53 -> 35 | G42: 15 | H42: 20
E43: 38 | F43: =F53 -> 35 | G43: 15 | H43: 20
E44: 39 | F44: =F53 -> 35 | G44: 16 | H44: 19
E45: 40 | F45: =F53 -> 35 | G45: 16 | H45: 19
E46: 41 | F46: =F53 -> 35 | G46: 24 | H46: 11
E47: 42 | F47: =F53 -> 35 | G47: 24 | H47: 11
E48: 43 | F48: =F53 -> 35 | G48: 24 | H48: 11
E49: 44 | F49: =F53 -> 35 | G49: 24 | H49: 11
E50: 45 | F50: =F53 -> 35 | G50: 24 | H50: 11
E51: 46 | F51: =F53 -> 35 | G51: 24 | H51: 11
E52: 47 | F52: =F53 -> 35 | G52: 24 | H52: 11
E53: 48 | F53: =C31 -> 35 | G53: 24 | H53: 11
E54: 49 | F54: =F65 -> 45 | G54: 24 | H54: 21
E55: 50 | F55: =F65 -> 45 | G55: 24 | H55: 21
E56: 51 | F56: =F65 -> 45 | G56: 24 | H56: 21
E57: 52 | F57: =F65 -> 45 | G57: 24 | H57: 21
E58: 53 | F58: =F65 -> 45 | G58: 24 | H58: 21
E59: 54 | F59: =F65 -> 45 | G59: 24 | H59: 21
E60: 55 | F60: =F65 -> 45 | G60: 24 | H60: 21
E61: 56 | F61: =F65 -> 45 | G61: 24 | H61: 21
E62: 57 | F62: =F65 -> 45 | G62: 24 | H62: 21
E63: 58 | F63: =F65 -> 45 | G63: 24 | H63: 21
E64: 59 | F64: =F65 -> 45 | G64: 24 | H64: 21
E65: 60 | F65: =C32 -> 45 | G65: 24 | H65: 21
E66: 61 | F66: =F77 -> 56 | G66: 35 | H66: 21
E67: 62 | F67: =F77 -> 56 | G67: 35 | H67: 21
E68: 63 | F68: =F77 -> 56 | G68: 35 | H68: 21
E69: 64 | F69: =F77 -> 56 | G69: 35 | H69: =F69-G69 -> 21
E70: 65 | F70: =F77 -> 56 | G70: =VLOOKUP(ROUNDUP(E70*0.6,0),$E$6:$F$185,2) -> 35 | H70: 21
E71: 66 | F71: =F77 -> 56 | G71: 35 | H71: 21
E72: 67 | F72: =F77 -> 56 | G72: 35 | H72: 21
E73: 68 | F73: =F77 -> 56 | G73: 35 | H73: 21
E74: 69 | F74: =F77 -> 56 | G74: 35 | H74: 21
E75: 70 | F75: =F77 -> 56 | G75: 35 | H75: 21
E76: 71 | F76: =F77 -> 56 | G76: 35 | H76: 21
E77: 72 | F77: =C33 -> 56 | G77: 35 | H77: 21
E78: 73 | F78: =F89 -> 62 | G78: 35 | H78: 27
E79: 74 | F79: =F89 -> 62 | G79: 35 | H79: 27
E80: 75 | F80: =F89 -> 62 | G80: 35 | H80: 27
E81: 76 | F81: =F89 -> 62 | G81: 35 | H81: 27
E82: 77 | F82: =F89 -> 62 | G82: 35 | H82: 27
E83: 78 | F83: =F89 -> 62 | G83: 35 | H83: 27
E84: 79 | F84: =F89 -> 62 | G84: 35 | H84: 27
E85: 80 | F85: =F89 -> 62 | G85: 35 | H85: 27
E86: 81 | F86: =F89 -> 62 | G86: 45 | H86: 17
E87: 82 | F87: =F89 -> 62 | G87: 45 | H87: 17
E88: 83 | F88: =F89 -> 62 | G88: 45 | H88: 17
E89: 84 | F89: =C34 -> 62 | G89: 45 | H89: 17
E90: 85 | F90: =F101 -> 66 | G90: 45 | H90: 21
E91: 86 | F91: =F101 -> 66 | G91: 45 | H91: 21
E92: 87 | F92: =F101 -> 66 | G92: 45 | H92: 21
E93: 88 | F93: =F101 -> 66 | G93: 45 | H93: 21
E94: 89 | F94: =F101 -> 66 | G94: 45 | H94: 21
E95: 90 | F95: =F101 -> 66 | G95: 45 | H95: 21
E96: 91 | F96: =F101 -> 66 | G96: 45 | H96: 21
E97: 92 | F97: =F101 -> 66 | G97: 45 | H97: 21
E98: 93 | F98: =F101 -> 66 | G98: 45 | H98: 21
E99: 94 | F99: =F101 -> 66 | G99: 45 | H99: 21
E100: 95 | F100: =F101 -> 66 | G100: 45 | H100: 21
E101: 96 | F101: =C35 -> 66 | G101: 45 | H101: 21
E102: 97 | F102: =F113 -> 71 | G102: 45 | H102: 26
E103: 98 | F103: =F113 -> 71 | G103: 45 | H103: 26
E104: 99 | F104: =F113 -> 71 | G104: 45 | H104: 26
E105: 100 | F105: =F113 -> 71 | G105: 45 | H105: 26
E106: 101 | F106: =F113 -> 71 | G106: 56 | H106: 15
E107: 102 | F107: =F113 -> 71 | G107: 56 | H107: 15
E108: 103 | F108: =F113 -> 71 | G108: 56 | H108: 15
E109: 104 | F109: =F113 -> 71 | G109: 56 | H109: 15
E110: 105 | F110: =F113 -> 71 | G110: 56 | H110: 15
E111: 106 | F111: =F113 -> 71 | G111: 56 | H111: 15
E112: 107 | F112: =F113 -> 71 | G112: 56 | H112: 15
E113: 108 | F113: =C36 -> 71 | G113: 56 | H113: 15
E114: 109 | F114: =F125 -> 76 | G114: 56 | H114: 20
E115: 110 | F115: =F125 -> 76 | G115: 56 | H115: 20
E116: 111 | F116: =F125 -> 76 | G116: 56 | H116: 20
E117: 112 | F117: =F125 -> 76 | G117: 56 | H117: 20
E118: 113 | F118: =F125 -> 76 | G118: 56 | H118: 20
E119: 114 | F119: =F125 -> 76 | G119: 56 | H119: 20
E120: 115 | F120: =F125 -> 76 | G120: 56 | H120: 20
E121: 116 | F121: =F125 -> 76 | G121: 56 | H121: 20
E122: 117 | F122: =F125 -> 76 | G122: 56 | H122: 20
E123: 118 | F123: =F125 -> 76 | G123: 56 | H123: 20
E124: 119 | F124: =F125 -> 76 | G124: 56 | H124: 20
E125: 120 | F125: =C37 -> 76 | G125: 56 | H125: 20
E126: 121 | F126: =$F$185 -> 88 | G126: 62 | H126: 26
E127: 122 | F127: 88 | G127: 62 | H127: 26
E128: 123 | F128: 88 | G128: 62 | H128: 26
E129: 124 | F129: 88 | G129: 62 | H129: 26
E130: 125 | F130: 88 | G130: 62 | H130: 26
E131: 126 | F131: 88 | G131: 62 | H131: 26
E132: 127 | F132: 88 | G132: 62 | H132: 26
E133: 128 | F133: 88 | G133: 62 | H133: =F133-G133 -> 26
E134: 129 | F134: 88 | G134: =VLOOKUP(ROUNDUP(E134*0.6,0),$E$6:$F$185,2) -> 62 | H134: 26
E135: 130 | F135: 88 | G135: 62 | H135: 26
E136: 131 | F136: 88 | G136: 62 | H136: 26
E137: 132 | F137: 88 | G137: 62 | H137: 26
E138: 133 | F138: 88 | G138: 62 | H138: 26
E139: 134 | F139: 88 | G139: 62 | H139: 26
E140: 135 | F140: 88 | G140: 62 | H140: 26
E141: 136 | F141: 88 | G141: 62 | H141: 26
E142: 137 | F142: 88 | G142: 62 | H142: 26
E143: 138 | F143: 88 | G143: 62 | H143: 26
E144: 139 | F144: 88 | G144: 62 | H144: 26
E145: 140 | F145: 88 | G145: 62 | H145: 26
E146: 141 | F146: 88 | G146: 66 | H146: 22
E147: 142 | F147: 88 | G147: 66 | H147: 22
E148: 143 | F148: 88 | G148: 66 | H148: 22
E149: 144 | F149: 88 | G149: 66 | H149: 22
E150: 145 | F150: 88 | G150: 66 | H150: 22
E151: 146 | F151: 88 | G151: 66 | H151: 22
E152: 147 | F152: 88 | G152: 66 | H152: 22
E153: 148 | F153: 88 | G153: 66 | H153: 22
E154: 149 | F154: 88 | G154: 66 | H154: 22
E155: 150 | F155: 88 | G155: 66 | H155: 22
E156: 151 | F156: 88 | G156: 66 | H156: 22
E157: 152 | F157: 88 | G157: 66 | H157: 22
E158: 153 | F158: 88 | G158: 66 | H158: 22
E159: 154 | F159: 88 | G159: 66 | H159: 22
E160: 155 | F160: 88 | G160: 66 | H160: 22
E161: 156 | F161: 88 | G161: 66 | H161: 22
E162: 157 | F162: 88 | G162: 66 | H162: 22
E163: 158 | F163: 88 | G163: 66 | H163: 22
E164: 159 | F164: 88 | G164: 66 | H164: 22
E165: 160 | F165: 88 | G165: 66 | H165: 22
E166: 161 | F166: 88 | G166: 71 | H166: 17
E167: 162 | F167: 88 | G167: 71 | H167: 17
E168: 163 | F168: 88 | G168: 71 | H168: 17
E169: 164 | F169: 88 | G169: 71 | H169: 17
E170: 165 | F170: 88 | G170: 71 | H170: 17
E171: 166 | F171: 88 | G171: 71 | H171: 17
E172: 167 | F172: 88 | G172: 71 | H172: 17
E173: 168 | F173: 88 | G173: 71 | H173: 17
E174: 169 | F174: 88 | G174: 71 | H174: 17
E175: 170 | F175: 88 | G175: 71 | H175: 17
E176: 171 | F176: 88 | G176: 71 | H176: 17
E177: 172 | F177: 88 | G177: 71 | H177: 17
E178: 173 | F178: 88 | G178: 71 | H178: 17
E179: 174 | F179: 88 | G179: 71 | H179: 17
E180: 175 | F180: 88 | G180: 71 | H180: 17
E181: 176 | F181: 88 | G181: 71 | H181: 17
E182: 177 | F182: 88 | G182: 71 | H182: 17
E183: 178 | F183: 88 | G183: 71 | H183: 17
E184: 179 | F184: 88 | G184: 71 | H184: 17
E185: 180 | F185: =C38 -> 88 | G185: =VLOOKUP(ROUNDUP(E185*0.6,0),$E$6:$F$185,2) -> 71 | H185: 17
